Body Name,Body,Service division categorisation,Expense Type,Date paid,Transaction Reference,Net,Supplier Name,Redacted/Excluded
East Lindsey District Council,http://statistics.data.gov.uk/id/local-authority/32UC,Economic & Tourism,Grants and Contributions to Outside Bodies- No Service Recei,04/06/13,IJ00022713,1349.26,LDS LIMITED, 
East Lindsey District Council,http://statistics.data.gov.uk/id/local-authority/32UC,Corporate Accounting,External Audit Fees,06/06/13,IJ00022678,1150.00,AUDIT COMMISSION, 
East Lindsey District Council,http://statistics.data.gov.uk/id/local-authority/32UC,Customer Services Manager,Telephones,06/06/13,IJ00022676,126.09,BT PLC, 
East Lindsey District Council,http://statistics.data.gov.uk/id/local-authority/32UC,Corporate Management,Telephones,06/06/13,IJ00022676,37.89,BT PLC, 
East Lindsey District Council,http://statistics.data.gov.uk/id/local-authority/32UC,Corporate Management,Telephones,06/06/13,IJ00022676,38.24,BT PLC, 
East Lindsey District Council,http://statistics.data.gov.uk/id/local-authority/32UC,Corporate Management,Telephones,06/06/13,IJ00022676,1927.76,BT PLC, 
East Lindsey District Council,http://statistics.data.gov.uk/id/local-authority/32UC,Corporate Management,Telephones,06/06/13,IJ00022676,52.71,BT PLC, 
East Lindsey District Council,http://statistics.data.gov.uk/id/local-authority/32UC,Corporate Management,Telephones,06/06/13,IJ00022676,3.13,BT PLC, 
East Lindsey District Council,http://statistics.data.gov.uk/id/local-authority/32UC,Economic & Tourism,Telephones,06/06/13,IJ00022676,166.88,BT PLC, 
East Lindsey District Council,http://statistics.data.gov.uk/id/local-authority/32UC,Economic & Tourism,Telephones,06/06/13,IJ00022676,37.87,BT PLC, 
East Lindsey District Council,http://statistics.data.gov.uk/id/local-authority/32UC,Economic & Tourism,Telephones,06/06/13,IJ00022676,37.91,BT PLC, 
East Lindsey District Council,http://statistics.data.gov.uk/id/local-authority/32UC,Economic & Tourism,Telephones,06/06/13,IJ00022676,37.89,BT PLC, 
East Lindsey District Council,http://statistics.data.gov.uk/id/local-authority/32UC,Economic & Tourism,Telephones,06/06/13,IJ00022676,37.89,BT PLC, 
East Lindsey District Council,http://statistics.data.gov.uk/id/local-authority/32UC,Leisure Operations,Telephones,06/06/13,IJ00022676,8.83,BT PLC, 
East Lindsey District Council,http://statistics.data.gov.uk/id/local-authority/32UC,Leisure Operations,Telephones,06/06/13,IJ00022676,4.68,BT PLC, 
East Lindsey District Council,http://statistics.data.gov.uk/id/local-authority/32UC,Theatre Manager,Telephones,06/06/13,IJ00022676,112.67,BT PLC, 
East Lindsey District Council,http://statistics.data.gov.uk/id/local-authority/32UC,Theatre Manager,Telephones,06/06/13,IJ00022676,27.50,BT PLC, 
East Lindsey District Council,http://statistics.data.gov.uk/id/local-authority/32UC,Theatre Manager,Telephones,06/06/13,IJ00022676,27.50,BT PLC, 
East Lindsey District Council,http://statistics.data.gov.uk/id/local-authority/32UC,Corporate Management,Telephones,06/06/13,IJ00022676,559.76,BT PLC, 
East Lindsey District Council,http://statistics.data.gov.uk/id/local-authority/32UC,Leisure Operations,Other agencies,06/06/13,IJ00022670,5817.92,COMPETITION LINE (UK) LTD, 
East Lindsey District Council,http://statistics.data.gov.uk/id/local-authority/32UC,Leisure Operations,Other Private Contractors,06/06/13,IJ00022767,4531.90,COMPETITION LINE (UK) LTD, 
East Lindsey District Council,http://statistics.data.gov.uk/id/local-authority/32UC,Leisure Operations,Other Private Contractors,06/06/13,IJ00022768,4610.12,COMPETITION LINE (UK) LTD, 
East Lindsey District Council,http://statistics.data.gov.uk/id/local-authority/32UC,Customer Services Manager,Payments to Bodies in Respect of Income Collected,06/06/13,IJ00022742,731.10,GRAYSCROFT BUS SERVICES LTD, 
East Lindsey District Council,http://statistics.data.gov.uk/id/local-authority/32UC,TL Property,Buildings Maintenance - Responsive,06/06/13,IJ00022800,1901.76,HARLITE INSTALLATIONS LTD, 
East Lindsey District Council,http://statistics.data.gov.uk/id/local-authority/32UC,Customer Services Manager,Payments to Bodies in Respect of Income Collected,06/06/13,IJ00022740,52.20,F HUNT (COACH HIRE) LTD, 
East Lindsey District Council,http://statistics.data.gov.uk/id/local-authority/32UC,Customer Services Manager,Payments to Bodies in Respect of Income Collected,06/06/13,IJ00022740,321.05,F HUNT (COACH HIRE) LTD, 
East Lindsey District Council,http://statistics.data.gov.uk/id/local-authority/32UC,Customer Services Manager,Payments to Bodies in Respect of Income Collected,06/06/13,IJ00022740,129.60,F HUNT (COACH HIRE) LTD, 
East Lindsey District Council,http://statistics.data.gov.uk/id/local-authority/32UC,"Performance, Governance & Commissioning",Other Miscellaneous Expenses,06/06/13,IJ00022694,629.04,SOUTH KESTEVEN DISTRICT COUNCIL, 
East Lindsey District Council,http://statistics.data.gov.uk/id/local-authority/32UC,"Performance, Governance & Commissioning",Other Miscellaneous Expenses,06/06/13,IJ00022694,40.00,SOUTH KESTEVEN DISTRICT COUNCIL, 
East Lindsey District Council,http://statistics.data.gov.uk/id/local-authority/32UC,Neighbourhood Services,Materials and Consumables,06/06/13,IJ00022802,1080.10,STOWLIN LTD, 
East Lindsey District Council,http://statistics.data.gov.uk/id/local-authority/32UC,Hsg Advice & Homelessness TL,Grants and Contributions to Outside Bodies- No Service Recei,06/06/13,IJ00022836,550.00,WILLSONS ESTATE AGENTS, 
East Lindsey District Council,http://statistics.data.gov.uk/id/local-authority/32UC,"Performance, Governance & Commissioning",Grants and Contributions to Outside Bodies- No Service Recei,06/06/13,IJ00022644,7200.00,GRIMOLDBY & MANBY PARISH COUNCIL, 
East Lindsey District Council,http://statistics.data.gov.uk/id/local-authority/32UC,Waste Services Manager,Telephones,06/06/13,IJ00022651,140.81,VODAFONE CORPORATE LIMITED, 
East Lindsey District Council,http://statistics.data.gov.uk/id/local-authority/32UC,Communications Manager,Telephones,06/06/13,IJ00022651,46.61,VODAFONE CORPORATE LIMITED, 
East Lindsey District Council,http://statistics.data.gov.uk/id/local-authority/32UC,Theatre Manager,Telephones,06/06/13,IJ00022651,69.88,VODAFONE CORPORATE LIMITED, 
East Lindsey District Council,http://statistics.data.gov.uk/id/local-authority/32UC,Development Control,Telephones,06/06/13,IJ00022651,18.12,VODAFONE CORPORATE LIMITED, 
East Lindsey District Council,http://statistics.data.gov.uk/id/local-authority/32UC,Enforcement Team Leader,Telephones,06/06/13,IJ00022651,23.13,VODAFONE CORPORATE LIMITED, 
East Lindsey District Council,http://statistics.data.gov.uk/id/local-authority/32UC,Enforcement Team Leader,Telephones,06/06/13,IJ00022651,17.51,VODAFONE CORPORATE LIMITED, 
East Lindsey District Council,http://statistics.data.gov.uk/id/local-authority/32UC,Enforcement Team Leader,Telephones,06/06/13,IJ00022651,38.70,VODAFONE CORPORATE LIMITED, 
East Lindsey District Council,http://statistics.data.gov.uk/id/local-authority/32UC,Building Control,Telephones,06/06/13,IJ00022651,21.58,VODAFONE CORPORATE LIMITED, 
East Lindsey District Council,http://statistics.data.gov.uk/id/local-authority/32UC,Hsg Private Sector TL,Telephones,06/06/13,IJ00022651,5.76,VODAFONE CORPORATE LIMITED, 
East Lindsey District Council,http://statistics.data.gov.uk/id/local-authority/32UC,Enforcement Team Leader,Telephones,06/06/13,IJ00022651,78.57,VODAFONE CORPORATE LIMITED, 
East Lindsey District Council,http://statistics.data.gov.uk/id/local-authority/32UC,Cultural & Related Services,Telephones,06/06/13,IJ00022651,37.06,VODAFONE CORPORATE LIMITED, 
East Lindsey District Council,http://statistics.data.gov.uk/id/local-authority/32UC,Hsg Advice & Homelessness TL,Telephones,06/06/13,IJ00022651,18.31,VODAFONE CORPORATE LIMITED, 
East Lindsey District Council,http://statistics.data.gov.uk/id/local-authority/32UC,Housing Support TL,Telephones,06/06/13,IJ00022651,356.00,VODAFONE CORPORATE LIMITED, 
East Lindsey District Council,http://statistics.data.gov.uk/id/local-authority/32UC,Hsg Private Sector TL,Telephones,06/06/13,IJ00022651,63.60,VODAFONE CORPORATE LIMITED, 
East Lindsey District Council,http://statistics.data.gov.uk/id/local-authority/32UC,Hsg Advice & Homelessness TL,Telephones,06/06/13,IJ00022651,30.11,VODAFONE CORPORATE LIMITED, 
East Lindsey District Council,http://statistics.data.gov.uk/id/local-authority/32UC,Waste Services Manager,Telephones,06/06/13,IJ00022651,62.70,VODAFONE CORPORATE LIMITED, 
East Lindsey District Council,http://statistics.data.gov.uk/id/local-authority/32UC,Building Control,Telephones,06/06/13,IJ00022651,208.49,VODAFONE CORPORATE LIMITED, 
East Lindsey District Council,http://statistics.data.gov.uk/id/local-authority/32UC,Housing Support TL,Telephones,06/06/13,IJ00022651,190.88,VODAFONE CORPORATE LIMITED, 
East Lindsey District Council,http://statistics.data.gov.uk/id/local-authority/32UC,Economic & Tourism,Telephones,06/06/13,IJ00022651,3.36,VODAFONE CORPORATE LIMITED, 
East Lindsey District Council,http://statistics.data.gov.uk/id/local-authority/32UC,Corporate Management,Telephones,06/06/13,IJ00022651,88.25,VODAFONE CORPORATE LIMITED, 
East Lindsey District Council,http://statistics.data.gov.uk/id/local-authority/32UC,Commercial Team Leader,Telephones,06/06/13,IJ00022651,131.08,VODAFONE CORPORATE LIMITED, 
East Lindsey District Council,http://statistics.data.gov.uk/id/local-authority/32UC,Leisure Operations,Telephones,06/06/13,IJ00022651,7.81,VODAFONE CORPORATE LIMITED, 
East Lindsey District Council,http://statistics.data.gov.uk/id/local-authority/32UC,Leisure Operations,Telephones,06/06/13,IJ00022651,14.53,VODAFONE CORPORATE LIMITED, 
East Lindsey District Council,http://statistics.data.gov.uk/id/local-authority/32UC,Leisure Operations,Telephones,06/06/13,IJ00022651,41.89,VODAFONE CORPORATE LIMITED, 
East Lindsey District Council,http://statistics.data.gov.uk/id/local-authority/32UC,Leisure Operations,Telephones,06/06/13,IJ00022651,8.34,VODAFONE CORPORATE LIMITED, 
East Lindsey District Council,http://statistics.data.gov.uk/id/local-authority/32UC,Neighbourhood Services,Telephones,06/06/13,IJ00022651,220.27,VODAFONE CORPORATE LIMITED, 
East Lindsey District Council,http://statistics.data.gov.uk/id/local-authority/32UC,TL Property,Telephones,06/06/13,IJ00022651,99.01,VODAFONE CORPORATE LIMITED, 
East Lindsey District Council,http://statistics.data.gov.uk/id/local-authority/32UC,Neighbourhood Services,Telephones,06/06/13,IJ00022651,35.93,VODAFONE CORPORATE LIMITED, 
East Lindsey District Council,http://statistics.data.gov.uk/id/local-authority/32UC,Economic & Tourism,Telephones,06/06/13,IJ00022651,22.36,VODAFONE CORPORATE LIMITED, 
East Lindsey District Council,http://statistics.data.gov.uk/id/local-authority/32UC,Cultural & Related Services,Telephones,06/06/13,IJ00022651,15.46,VODAFONE CORPORATE LIMITED, 
East Lindsey District Council,http://statistics.data.gov.uk/id/local-authority/32UC,"Performance, Governance & Commissioning",Telephones,06/06/13,IJ00022651,176.74,VODAFONE CORPORATE LIMITED, 
East Lindsey District Council,http://statistics.data.gov.uk/id/local-authority/32UC,Enforcement Team Leader,Telephones,06/06/13,IJ00022651,54.00,VODAFONE CORPORATE LIMITED, 
East Lindsey District Council,http://statistics.data.gov.uk/id/local-authority/32UC,Environment Team Leader,Telephones,06/06/13,IJ00022651,148.32,VODAFONE CORPORATE LIMITED, 
East Lindsey District Council,http://statistics.data.gov.uk/id/local-authority/32UC,Cultural & Related Services,Telephones,06/06/13,IJ00022651,4.78,VODAFONE CORPORATE LIMITED, 
East Lindsey District Council,http://statistics.data.gov.uk/id/local-authority/32UC,Cultural & Related Services,Telephones,06/06/13,IJ00022651,9.58,VODAFONE CORPORATE LIMITED, 
East Lindsey District Council,http://statistics.data.gov.uk/id/local-authority/32UC,Cultural & Related Services,Telephones,06/06/13,IJ00022651,25.35,VODAFONE CORPORATE LIMITED, 
East Lindsey District Council,http://statistics.data.gov.uk/id/local-authority/32UC,Cultural & Related Services,Telephones,06/06/13,IJ00022651,33.14,VODAFONE CORPORATE LIMITED, 
East Lindsey District Council,http://statistics.data.gov.uk/id/local-authority/32UC,Hsg Private Sector TL,Telephones,06/06/13,IJ00022651,16.96,VODAFONE CORPORATE LIMITED, 
East Lindsey District Council,http://statistics.data.gov.uk/id/local-authority/32UC,Housing Support TL,Telephones,06/06/13,IJ00022651,15.31,VODAFONE CORPORATE LIMITED, 
East Lindsey District Council,http://statistics.data.gov.uk/id/local-authority/32UC,"Performance, Governance & Commissioning",Telephones,06/06/13,IJ00022651,18.43,VODAFONE CORPORATE LIMITED, 
East Lindsey District Council,http://statistics.data.gov.uk/id/local-authority/32UC,Planning & Housing Policy Manager,Telephones,06/06/13,IJ00022651,31.06,VODAFONE CORPORATE LIMITED, 
East Lindsey District Council,http://statistics.data.gov.uk/id/local-authority/32UC,Economic & Tourism,Telephones,06/06/13,IJ00022651,96.60,VODAFONE CORPORATE LIMITED, 
East Lindsey District Council,http://statistics.data.gov.uk/id/local-authority/32UC,Cultural & Related Services,Telephones,06/06/13,IJ00022651,137.93,VODAFONE CORPORATE LIMITED, 
East Lindsey District Council,http://statistics.data.gov.uk/id/local-authority/32UC,Cultural & Related Services,Telephones,06/06/13,IJ00022651,5.62,VODAFONE CORPORATE LIMITED, 
East Lindsey District Council,http://statistics.data.gov.uk/id/local-authority/32UC,Neighbourhood Services,Telephones,06/06/13,IJ00022651,105.51,VODAFONE CORPORATE LIMITED, 
East Lindsey District Council,http://statistics.data.gov.uk/id/local-authority/32UC,Neighbourhood Services,Telephones,06/06/13,IJ00022651,11.32,VODAFONE CORPORATE LIMITED, 
East Lindsey District Council,http://statistics.data.gov.uk/id/local-authority/32UC,Theatre Manager,Telephones,06/06/13,IJ00022651,2.81,VODAFONE CORPORATE LIMITED, 
East Lindsey District Council,http://statistics.data.gov.uk/id/local-authority/32UC,Corporate Management,Telephones,06/06/13,IJ00022651,8.61,VODAFONE CORPORATE LIMITED, 
East Lindsey District Council,http://statistics.data.gov.uk/id/local-authority/32UC,Enforcement Team Leader,Telephones,06/06/13,IJ00022651,13.50,VODAFONE CORPORATE LIMITED, 
East Lindsey District Council,http://statistics.data.gov.uk/id/local-authority/32UC,Enforcement Team Leader,Telephones,06/06/13,IJ00022651,6.75,VODAFONE CORPORATE LIMITED, 
East Lindsey District Council,http://statistics.data.gov.uk/id/local-authority/32UC,Enforcement Team Leader,Telephones,06/06/13,IJ00022651,6.75,VODAFONE CORPORATE LIMITED, 
East Lindsey District Council,http://statistics.data.gov.uk/id/local-authority/32UC,Enforcement Team Leader,Telephones,06/06/13,IJ00022651,33.75,VODAFONE CORPORATE LIMITED, 
East Lindsey District Council,http://statistics.data.gov.uk/id/local-authority/32UC,Enforcement Team Leader,Telephones,06/06/13,IJ00022651,6.75,VODAFONE CORPORATE LIMITED, 
East Lindsey District Council,http://statistics.data.gov.uk/id/local-authority/32UC,Enforcement Team Leader,Telephones,06/06/13,IJ00022651,6.75,VODAFONE CORPORATE LIMITED, 
East Lindsey District Council,http://statistics.data.gov.uk/id/local-authority/32UC,Enforcement Team Leader,Telephones,06/06/13,IJ00022651,20.25,VODAFONE CORPORATE LIMITED, 
East Lindsey District Council,http://statistics.data.gov.uk/id/local-authority/32UC,Enforcement Team Leader,Telephones,06/06/13,IJ00022651,6.75,VODAFONE CORPORATE LIMITED, 
East Lindsey District Council,http://statistics.data.gov.uk/id/local-authority/32UC,Enforcement Team Leader,Telephones,06/06/13,IJ00022651,13.50,VODAFONE CORPORATE LIMITED, 
East Lindsey District Council,http://statistics.data.gov.uk/id/local-authority/32UC,Enforcement Team Leader,Telephones,06/06/13,IJ00022651,6.75,VODAFONE CORPORATE LIMITED, 
East Lindsey District Council,http://statistics.data.gov.uk/id/local-authority/32UC,Enforcement Team Leader,Telephones,06/06/13,IJ00022651,6.75,VODAFONE CORPORATE LIMITED, 
East Lindsey District Council,http://statistics.data.gov.uk/id/local-authority/32UC,Enforcement Team Leader,Telephones,06/06/13,IJ00022651,6.75,VODAFONE CORPORATE LIMITED, 
East Lindsey District Council,http://statistics.data.gov.uk/id/local-authority/32UC,Enforcement Team Leader,Telephones,06/06/13,IJ00022651,6.75,VODAFONE CORPORATE LIMITED, 
East Lindsey District Council,http://statistics.data.gov.uk/id/local-authority/32UC,Enforcement Team Leader,Telephones,06/06/13,IJ00022651,13.50,VODAFONE CORPORATE LIMITED, 
East Lindsey District Council,http://statistics.data.gov.uk/id/local-authority/32UC,Enforcement Team Leader,Telephones,06/06/13,IJ00022651,6.75,VODAFONE CORPORATE LIMITED, 
East Lindsey District Council,http://statistics.data.gov.uk/id/local-authority/32UC,Enforcement Team Leader,Telephones,06/06/13,IJ00022651,6.75,VODAFONE CORPORATE LIMITED, 
East Lindsey District Council,http://statistics.data.gov.uk/id/local-authority/32UC,Enforcement Team Leader,Telephones,06/06/13,IJ00022651,6.75,VODAFONE CORPORATE LIMITED, 
East Lindsey District Council,http://statistics.data.gov.uk/id/local-authority/32UC,Enforcement Team Leader,Telephones,06/06/13,IJ00022651,6.75,VODAFONE CORPORATE LIMITED, 
East Lindsey District Council,http://statistics.data.gov.uk/id/local-authority/32UC,Enforcement Team Leader,Telephones,06/06/13,IJ00022651,13.50,VODAFONE CORPORATE LIMITED, 
East Lindsey District Council,http://statistics.data.gov.uk/id/local-authority/32UC,Enforcement Team Leader,Telephones,06/06/13,IJ00022651,13.50,VODAFONE CORPORATE LIMITED, 
East Lindsey District Council,http://statistics.data.gov.uk/id/local-authority/32UC,Enforcement Team Leader,Telephones,06/06/13,IJ00022651,6.75,VODAFONE CORPORATE LIMITED, 
East Lindsey District Council,http://statistics.data.gov.uk/id/local-authority/32UC,Enforcement Team Leader,Telephones,06/06/13,IJ00022651,6.75,VODAFONE CORPORATE LIMITED, 
East Lindsey District Council,http://statistics.data.gov.uk/id/local-authority/32UC,Enforcement Team Leader,Telephones,06/06/13,IJ00022651,20.25,VODAFONE CORPORATE LIMITED, 
East Lindsey District Council,http://statistics.data.gov.uk/id/local-authority/32UC,Enforcement Team Leader,Telephones,06/06/13,IJ00022651,13.50,VODAFONE CORPORATE LIMITED, 
East Lindsey District Council,http://statistics.data.gov.uk/id/local-authority/32UC,Enforcement Team Leader,Telephones,06/06/13,IJ00022651,6.75,VODAFONE CORPORATE LIMITED, 
East Lindsey District Council,http://statistics.data.gov.uk/id/local-authority/32UC,Enforcement Team Leader,Telephones,06/06/13,IJ00022651,13.50,VODAFONE CORPORATE LIMITED, 
East Lindsey District Council,http://statistics.data.gov.uk/id/local-authority/32UC,Enforcement Team Leader,Telephones,06/06/13,IJ00022651,13.50,VODAFONE CORPORATE LIMITED, 
East Lindsey District Council,http://statistics.data.gov.uk/id/local-authority/32UC,Enforcement Team Leader,Telephones,06/06/13,IJ00022651,6.75,VODAFONE CORPORATE LIMITED, 
East Lindsey District Council,http://statistics.data.gov.uk/id/local-authority/32UC,Enforcement Team Leader,Telephones,06/06/13,IJ00022651,20.25,VODAFONE CORPORATE LIMITED, 
East Lindsey District Council,http://statistics.data.gov.uk/id/local-authority/32UC,Enforcement Team Leader,Telephones,06/06/13,IJ00022651,6.75,VODAFONE CORPORATE LIMITED, 
East Lindsey District Council,http://statistics.data.gov.uk/id/local-authority/32UC,Enforcement Team Leader,Telephones,06/06/13,IJ00022651,13.50,VODAFONE CORPORATE LIMITED, 
East Lindsey District Council,http://statistics.data.gov.uk/id/local-authority/32UC,Enforcement Team Leader,Telephones,06/06/13,IJ00022651,6.75,VODAFONE CORPORATE LIMITED, 
East Lindsey District Council,http://statistics.data.gov.uk/id/local-authority/32UC,Enforcement Team Leader,Telephones,06/06/13,IJ00022651,13.50,VODAFONE CORPORATE LIMITED, 
East Lindsey District Council,http://statistics.data.gov.uk/id/local-authority/32UC,Enforcement Team Leader,Telephones,06/06/13,IJ00022651,20.25,VODAFONE CORPORATE LIMITED, 
East Lindsey District Council,http://statistics.data.gov.uk/id/local-authority/32UC,Enforcement Team Leader,Telephones,06/06/13,IJ00022651,6.75,VODAFONE CORPORATE LIMITED, 
East Lindsey District Council,http://statistics.data.gov.uk/id/local-authority/32UC,Enforcement Team Leader,Telephones,06/06/13,IJ00022651,6.75,VODAFONE CORPORATE LIMITED, 
East Lindsey District Council,http://statistics.data.gov.uk/id/local-authority/32UC,Enforcement Team Leader,Telephones,06/06/13,IJ00022651,6.75,VODAFONE CORPORATE LIMITED, 
East Lindsey District Council,http://statistics.data.gov.uk/id/local-authority/32UC,Enforcement Team Leader,Telephones,06/06/13,IJ00022651,6.75,VODAFONE CORPORATE LIMITED, 
East Lindsey District Council,http://statistics.data.gov.uk/id/local-authority/32UC,Enforcement Team Leader,Telephones,06/06/13,IJ00022651,6.75,VODAFONE CORPORATE LIMITED, 
East Lindsey District Council,http://statistics.data.gov.uk/id/local-authority/32UC,Enforcement Team Leader,Telephones,06/06/13,IJ00022651,6.75,VODAFONE CORPORATE LIMITED, 
East Lindsey District Council,http://statistics.data.gov.uk/id/local-authority/32UC,Enforcement Team Leader,Telephones,06/06/13,IJ00022651,6.75,VODAFONE CORPORATE LIMITED, 
East Lindsey District Council,http://statistics.data.gov.uk/id/local-authority/32UC,Enforcement Team Leader,Telephones,06/06/13,IJ00022651,13.50,VODAFONE CORPORATE LIMITED, 
East Lindsey District Council,http://statistics.data.gov.uk/id/local-authority/32UC,Enforcement Team Leader,Telephones,06/06/13,IJ00022651,6.75,VODAFONE CORPORATE LIMITED, 
East Lindsey District Council,http://statistics.data.gov.uk/id/local-authority/32UC,Enforcement Team Leader,Telephones,06/06/13,IJ00022651,6.75,VODAFONE CORPORATE LIMITED, 
East Lindsey District Council,http://statistics.data.gov.uk/id/local-authority/32UC,Capital WIP,"Purchase of Plant, Machinery & Equipment",06/06/13,IJ00022799,816.24,KENMOR BUILDING & CONSTRUCTION SERVICES, 
East Lindsey District Council,http://statistics.data.gov.uk/id/local-authority/32UC,Economic & Tourism,Buildings Maintenance - Responsive,06/06/13,IJ00022807,868.39,KENMOR BUILDING & CONSTRUCTION SERVICES, 
East Lindsey District Council,http://statistics.data.gov.uk/id/local-authority/32UC,Economic & Tourism,Postages,06/06/13,IJ00022710,593.43,ROYAL MAIL, 
East Lindsey District Council,http://statistics.data.gov.uk/id/local-authority/32UC,Neighbourhood Services,Professional & Contractors Fees,06/06/13,IJ00022851,49.05,PHS GROUP PLC, 
East Lindsey District Council,http://statistics.data.gov.uk/id/local-authority/32UC,Neighbourhood Services,Professional & Contractors Fees,06/06/13,IJ00022851,53.59,PHS GROUP PLC, 
East Lindsey District Council,http://statistics.data.gov.uk/id/local-authority/32UC,Neighbourhood Services,Professional & Contractors Fees,06/06/13,IJ00022851,68.29,PHS GROUP PLC, 
East Lindsey District Council,http://statistics.data.gov.uk/id/local-authority/32UC,Neighbourhood Services,Professional & Contractors Fees,06/06/13,IJ00022851,171.13,PHS GROUP PLC, 
East Lindsey District Council,http://statistics.data.gov.uk/id/local-authority/32UC,Neighbourhood Services,Professional & Contractors Fees,06/06/13,IJ00022851,214.42,PHS GROUP PLC, 
East Lindsey District Council,http://statistics.data.gov.uk/id/local-authority/32UC,Neighbourhood Services,Professional & Contractors Fees,06/06/13,IJ00022851,400.81,PHS GROUP PLC, 
East Lindsey District Council,http://statistics.data.gov.uk/id/local-authority/32UC,Neighbourhood Services,Professional & Contractors Fees,06/06/13,IJ00022851,164.10,PHS GROUP PLC, 
East Lindsey District Council,http://statistics.data.gov.uk/id/local-authority/32UC,Neighbourhood Services,Professional & Contractors Fees,06/06/13,IJ00022851,625.96,PHS GROUP PLC, 
East Lindsey District Council,http://statistics.data.gov.uk/id/local-authority/32UC,Neighbourhood Services,Professional & Contractors Fees,06/06/13,IJ00022851,146.66,PHS GROUP PLC, 
East Lindsey District Council,http://statistics.data.gov.uk/id/local-authority/32UC,Neighbourhood Services,Professional & Contractors Fees,06/06/13,IJ00022851,420.18,PHS GROUP PLC, 
East Lindsey District Council,http://statistics.data.gov.uk/id/local-authority/32UC,Neighbourhood Services,Professional & Contractors Fees,06/06/13,IJ00022851,273.21,PHS GROUP PLC, 
East Lindsey District Council,http://statistics.data.gov.uk/id/local-authority/32UC,Neighbourhood Services,Professional & Contractors Fees,06/06/13,IJ00022851,236.44,PHS GROUP PLC, 
East Lindsey District Council,http://statistics.data.gov.uk/id/local-authority/32UC,Neighbourhood Services,Professional & Contractors Fees,06/06/13,IJ00022851,154.34,PHS GROUP PLC, 
East Lindsey District Council,http://statistics.data.gov.uk/id/local-authority/32UC,Neighbourhood Services,Professional & Contractors Fees,06/06/13,IJ00022851,283.57,PHS GROUP PLC, 
East Lindsey District Council,http://statistics.data.gov.uk/id/local-authority/32UC,Neighbourhood Services,Professional & Contractors Fees,06/06/13,IJ00022851,68.29,PHS GROUP PLC, 
East Lindsey District Council,http://statistics.data.gov.uk/id/local-authority/32UC,Neighbourhood Services,Professional & Contractors Fees,06/06/13,IJ00022851,69.52,PHS GROUP PLC, 
East Lindsey District Council,http://statistics.data.gov.uk/id/local-authority/32UC,Neighbourhood Services,Professional & Contractors Fees,06/06/13,IJ00022851,200.40,PHS GROUP PLC, 
East Lindsey District Council,http://statistics.data.gov.uk/id/local-authority/32UC,Neighbourhood Services,Professional & Contractors Fees,06/06/13,IJ00022851,92.50,PHS GROUP PLC, 
East Lindsey District Council,http://statistics.data.gov.uk/id/local-authority/32UC,Neighbourhood Services,Professional & Contractors Fees,06/06/13,IJ00022851,44.08,PHS GROUP PLC, 
East Lindsey District Council,http://statistics.data.gov.uk/id/local-authority/32UC,Neighbourhood Services,Professional & Contractors Fees,06/06/13,IJ00022851,53.61,PHS GROUP PLC, 
East Lindsey District Council,http://statistics.data.gov.uk/id/local-authority/32UC,TL Property,Other Miscellaneous Expenses,06/06/13,IJ00022661,1143.97,VENDING ENTERPRISES, 
East Lindsey District Council,http://statistics.data.gov.uk/id/local-authority/32UC,Corporate Accounting,Internal Drainage Board Levies,06/06/13,IJ00022870,133244.21,THE WITHAM THIRD DISTRICT, 
East Lindsey District Council,http://statistics.data.gov.uk/id/local-authority/32UC,Enforcement Team Leader,Professional & Contractors Fees,06/06/13,IJ00022635,3394.00,LINCOLNSHIRE COUNTY COUNCIL, 
East Lindsey District Council,http://statistics.data.gov.uk/id/local-authority/32UC,Economic & Tourism,Other Miscellaneous Expenses,06/06/13,IJ00022638,3000.00,LINCOLNSHIRE COUNTY COUNCIL, 
East Lindsey District Council,http://statistics.data.gov.uk/id/local-authority/32UC,Waste Services Manager,Fuel & Oil,06/06/13,IJ00022692,13945.98,WATSON PETROLEUM LTD, 
East Lindsey District Council,http://statistics.data.gov.uk/id/local-authority/32UC,Waste Services Manager,Fuel & Oil,06/06/13,IJ00022693,14044.15,WATSON PETROLEUM LTD, 
East Lindsey District Council,http://statistics.data.gov.uk/id/local-authority/32UC,Theatre Manager,Furniture and Equipment,06/06/13,IJ00022733,548.65,STAGE ELECTRICS, 
East Lindsey District Council,http://statistics.data.gov.uk/id/local-authority/32UC,Neighbourhood Services,Furniture and Equipment,06/06/13,IJ00022705,544.20,OVERTON UK LTD, 
East Lindsey District Council,http://statistics.data.gov.uk/id/local-authority/32UC,Neighbourhood Services,Furniture and Equipment,06/06/13,IJ00022706,685.68,OVERTON UK LTD, 
East Lindsey District Council,http://statistics.data.gov.uk/id/local-authority/32UC,Neighbourhood Services,Professional & Contractors Fees,06/06/13,IJ00022699,1052.00,GARDNER PLANT, 
East Lindsey District Council,http://statistics.data.gov.uk/id/local-authority/32UC,Enforcement Team Leader,Materials and Consumables,06/06/13,IJ00022858,702.00,CUMMINS-ALLISON LTD, 
East Lindsey District Council,http://statistics.data.gov.uk/id/local-authority/32UC,Leisure Operations,Other agencies,06/06/13,IJ00022883,764.04,WICKER MOBILITY SHOP, 
East Lindsey District Council,http://statistics.data.gov.uk/id/local-authority/32UC,Corporate Management,Professional & Contractors Fees,06/06/13,IJ00022673,650.00,CHRISTOPHER DONKIN, 
East Lindsey District Council,http://statistics.data.gov.uk/id/local-authority/32UC,Leisure Operations,Other Miscellaneous Expenses,06/06/13,IJ00022737,779.29,DEE BEE, 
East Lindsey District Council,http://statistics.data.gov.uk/id/local-authority/32UC,Hsg Private Sector TL,Grants and Contributions to Outside Bodies- No Service Recei,06/06/13,IJ00022865,550.00,OBAM STAIRLIFTS, 
East Lindsey District Council,http://statistics.data.gov.uk/id/local-authority/32UC,TL Property,Electricity,06/06/13,IJ00022801,1054.08,SKEG GRAIN LTD, 
East Lindsey District Council,http://statistics.data.gov.uk/id/local-authority/32UC,Waste Services Manager,Maintenance,06/06/13,IJ00022723,500.00,M J WINDSCREENS LTD, 
East Lindsey District Council,http://statistics.data.gov.uk/id/local-authority/32UC,Theatre Manager,Performers and Entertainers Fees,06/06/13,IJ00022845,3286.42,MORNINGSIDE MANAGEMENT LTD, 
East Lindsey District Council,http://statistics.data.gov.uk/id/local-authority/32UC,Theatre Manager,Performers and Entertainers Fees,06/06/13,IJ00022845,-222.00,MORNINGSIDE MANAGEMENT LTD, 
East Lindsey District Council,http://statistics.data.gov.uk/id/local-authority/32UC,Commercial Team Leader,Professional & Contractors Fees,06/06/13,IJ00022862,895.22,RASE VETERINARY CENTRE, 
East Lindsey District Council,http://statistics.data.gov.uk/id/local-authority/32UC,Waste Services Manager,Agency Staff,06/06/13,IJ00022770,6273.94,CLOSE INVOICE FINANCE LTD, 
East Lindsey District Council,http://statistics.data.gov.uk/id/local-authority/32UC,Theatre Manager,Performers and Entertainers Fees,06/06/13,IJ00022843,11577.23,OFF THE KERB PRODUCTIONS, 
East Lindsey District Council,http://statistics.data.gov.uk/id/local-authority/32UC,Theatre Manager,Performers and Entertainers Fees,06/06/13,IJ00022843,-210.00,OFF THE KERB PRODUCTIONS, 
East Lindsey District Council,http://statistics.data.gov.uk/id/local-authority/32UC,Economic & Tourism,Other Miscellaneous Expenses,06/06/13,IJ00022663,1147.00,PRINTTALK, 
East Lindsey District Council,http://statistics.data.gov.uk/id/local-authority/32UC,Theatre Manager,Performers and Entertainers Fees,06/06/13,IJ00022846,1737.38,THE IMPOSTERS, 
East Lindsey District Council,http://statistics.data.gov.uk/id/local-authority/32UC,Theatre Manager,Performers and Entertainers Fees,06/06/13,IJ00022846,-546.00,THE IMPOSTERS, 
East Lindsey District Council,http://statistics.data.gov.uk/id/local-authority/32UC,Enforcement Team Leader,Payments to Bodies in Respect of Income Collected,06/06/13,IJ00022752,2241.10,INNES ENGLAND COMMERCIAL PROPERTY, 
East Lindsey District Council,http://statistics.data.gov.uk/id/local-authority/32UC,Development Control,Banking Charges,06/06/13,IJ00022750,9.70,CAPITA BUSINESS SERVICES LTD, 
East Lindsey District Council,http://statistics.data.gov.uk/id/local-authority/32UC,Enforcement Team Leader,Banking Charges,06/06/13,IJ00022750,0.48,CAPITA BUSINESS SERVICES LTD, 
East Lindsey District Council,http://statistics.data.gov.uk/id/local-authority/32UC,Corporate Accounting,Banking Charges,06/06/13,IJ00022750,1232.77,CAPITA BUSINESS SERVICES LTD, 
East Lindsey District Council,http://statistics.data.gov.uk/id/local-authority/32UC,Corporate Management,Banking Charges,06/06/13,IJ00022750,107.74,CAPITA BUSINESS SERVICES LTD, 
East Lindsey District Council,http://statistics.data.gov.uk/id/local-authority/32UC,Corporate Management,Banking Charges,06/06/13,IJ00022750,3179.94,CAPITA BUSINESS SERVICES LTD, 
East Lindsey District Council,http://statistics.data.gov.uk/id/local-authority/32UC,Corporate Management,Banking Charges,06/06/13,IJ00022750,72.48,CAPITA BUSINESS SERVICES LTD, 
East Lindsey District Council,http://statistics.data.gov.uk/id/local-authority/32UC,Corporate Management,Banking Charges,06/06/13,IJ00022750,42.28,CAPITA BUSINESS SERVICES LTD, 
East Lindsey District Council,http://statistics.data.gov.uk/id/local-authority/32UC,Hsg Private Sector TL,Other Income,06/06/13,IJ00022867,-99.00,DOLPHIN MOBILITY EAST MIDLANDS, 
East Lindsey District Council,http://statistics.data.gov.uk/id/local-authority/32UC,Hsg Private Sector TL,Grants and Contributions to Outside Bodies- No Service Recei,06/06/13,IJ00022867,1108.80,DOLPHIN MOBILITY EAST MIDLANDS, 
East Lindsey District Council,http://statistics.data.gov.uk/id/local-authority/32UC,Capital WIP,"Purchase of Plant, Machinery & Equipment",06/06/13,IJ00022878,2561.32,RIGGOTT & CO LTD, 
East Lindsey District Council,http://statistics.data.gov.uk/id/local-authority/32UC,TL Property,Buildings Maintenance - Programmed,06/06/13,IJ00022878,831.95,RIGGOTT & CO LTD, 
East Lindsey District Council,http://statistics.data.gov.uk/id/local-authority/32UC,Enforcement Team Leader,Buildings Maintenance - Responsive,06/06/13,IJ00022878,127.59,RIGGOTT & CO LTD, 
East Lindsey District Council,http://statistics.data.gov.uk/id/local-authority/32UC,Enforcement Team Leader,Buildings Maintenance - Responsive,06/06/13,IJ00022878,127.39,RIGGOTT & CO LTD, 
East Lindsey District Council,http://statistics.data.gov.uk/id/local-authority/32UC,Capital WIP,Buildings Maintenance - Responsive,06/06/13,IJ00022878,857.71,RIGGOTT & CO LTD, 
East Lindsey District Council,http://statistics.data.gov.uk/id/local-authority/32UC,Enforcement Team Leader,Buildings Maintenance - Responsive,06/06/13,IJ00022878,1142.52,RIGGOTT & CO LTD, 
East Lindsey District Council,http://statistics.data.gov.uk/id/local-authority/32UC,Enforcement Team Leader,Buildings Maintenance - Responsive,06/06/13,IJ00022878,2996.14,RIGGOTT & CO LTD, 
East Lindsey District Council,http://statistics.data.gov.uk/id/local-authority/32UC,Cultural & Related Services,Advertising - Events,06/06/13,IJ00022649,3650.00,LAVA, 
East Lindsey District Council,http://statistics.data.gov.uk/id/local-authority/32UC,Theatre Manager,Professional & Contractors Fees,06/06/13,IJ00022698,2550.00,LAVAT, 
East Lindsey District Council,http://statistics.data.gov.uk/id/local-authority/32UC,Neighbourhood Services,Agency Staff,06/06/13,IJ00022855,663.33,THE WORKSHOP (WISBECH) LIMITED, 
East Lindsey District Council,http://statistics.data.gov.uk/id/local-authority/32UC,Neighbourhood Services,Agency Staff,06/06/13,IJ00022855,663.32,THE WORKSHOP (WISBECH) LIMITED, 
East Lindsey District Council,http://statistics.data.gov.uk/id/local-authority/32UC,Neighbourhood Services,Agency Staff,06/06/13,IJ00022718,318.99,THE WORKSHOP (WISBECH) LIMITED, 
East Lindsey District Council,http://statistics.data.gov.uk/id/local-authority/32UC,Neighbourhood Services,Agency Staff,06/06/13,IJ00022718,318.99,THE WORKSHOP (WISBECH) LIMITED, 
East Lindsey District Council,http://statistics.data.gov.uk/id/local-authority/32UC,Neighbourhood Services,Materials and Consumables,06/06/13,IJ00022766,143.16,COLLIER TURF CARE LIMITED, 
East Lindsey District Council,http://statistics.data.gov.uk/id/local-authority/32UC,Neighbourhood Services,Materials and Consumables,06/06/13,IJ00022766,751.59,COLLIER TURF CARE LIMITED, 
East Lindsey District Council,http://statistics.data.gov.uk/id/local-authority/32UC,Customer Services Manager,Payments to Bodies in Respect of Income Collected,06/06/13,IJ00022739,1569.61,NATIONAL EXPRESS CREDIT CONTROL DEPT, 
East Lindsey District Council,http://statistics.data.gov.uk/id/local-authority/32UC,Customer Services Manager,Payments to Bodies in Respect of Income Collected,06/06/13,IJ00022739,2115.60,NATIONAL EXPRESS CREDIT CONTROL DEPT, 
East Lindsey District Council,http://statistics.data.gov.uk/id/local-authority/32UC,Customer Services Manager,Payments to Bodies in Respect of Income Collected,06/06/13,IJ00022739,970.92,NATIONAL EXPRESS CREDIT CONTROL DEPT, 
East Lindsey District Council,http://statistics.data.gov.uk/id/local-authority/32UC,Customer Services Manager,Payments to Bodies in Respect of Income Collected,06/06/13,IJ00022739,249.73,NATIONAL EXPRESS CREDIT CONTROL DEPT, 
East Lindsey District Council,http://statistics.data.gov.uk/id/local-authority/32UC,Economic & Tourism,Grants and Contributions to Outside Bodies- No Service Recei,06/06/13,IJ00022884,1349.26,BIBBY FACTORS NORTHWEST LIMITED, 
East Lindsey District Council,http://statistics.data.gov.uk/id/local-authority/32UC,Leisure Operations,Furniture and Equipment,06/06/13,IJ00022702,873.78,ADDAMS OFFICE SUPPLIES LTD, 
East Lindsey District Council,http://statistics.data.gov.uk/id/local-authority/32UC,Neighbourhood Services,Buildings Maintenance - Programmed,06/06/13,IJ00022791,511.20,RENTOKIL SPECIALIST HYGIENE, 
East Lindsey District Council,http://statistics.data.gov.uk/id/local-authority/32UC,Neighbourhood Services,Buildings Maintenance - Programmed,06/06/13,IJ00022792,722.40,RENTOKIL SPECIALIST HYGIENE, 
East Lindsey District Council,http://statistics.data.gov.uk/id/local-authority/32UC,Neighbourhood Services,Buildings Maintenance - Programmed,06/06/13,IJ00022793,722.40,RENTOKIL SPECIALIST HYGIENE, 
East Lindsey District Council,http://statistics.data.gov.uk/id/local-authority/32UC,Neighbourhood Services,Buildings Maintenance - Programmed,06/06/13,IJ00022794,722.40,RENTOKIL SPECIALIST HYGIENE, 
East Lindsey District Council,http://statistics.data.gov.uk/id/local-authority/32UC,Neighbourhood Services,Buildings Maintenance - Programmed,06/06/13,IJ00022795,722.40,RENTOKIL SPECIALIST HYGIENE, 
East Lindsey District Council,http://statistics.data.gov.uk/id/local-authority/32UC,Neighbourhood Services,Buildings Maintenance - Programmed,06/06/13,IJ00022798,722.40,RENTOKIL SPECIALIST HYGIENE, 
East Lindsey District Council,http://statistics.data.gov.uk/id/local-authority/32UC,Customer Services Manager,Payments to Bodies in Respect of Income Collected,06/06/13,IJ00022741,932.49,WOODHALL SPA COTTAGE MUSEUM, 
East Lindsey District Council,http://statistics.data.gov.uk/id/local-authority/32UC,Cultural & Related Services,Voluntary associations,06/06/13,IJ00022857,62527.49,WOODHALL SPA COTTAGE MUSEUM, 
East Lindsey District Council,http://statistics.data.gov.uk/id/local-authority/32UC,Hsg Private Sector TL,Other Income,06/06/13,IJ00022866,-366.34,HARRIS BUILDING SERVICES, 
East Lindsey District Council,http://statistics.data.gov.uk/id/local-authority/32UC,Hsg Private Sector TL,Grants and Contributions to Outside Bodies- No Service Recei,06/06/13,IJ00022866,4102.99,HARRIS BUILDING SERVICES, 
East Lindsey District Council,http://statistics.data.gov.uk/id/local-authority/32UC,Economic & Tourism,Grants and Contributions to Outside Bodies- No Service Recei,06/06/13,IJ00022844,874.80,MABLETHORPE AREA PARTNERSHIP, 
East Lindsey District Council,http://statistics.data.gov.uk/id/local-authority/32UC,"Performance, Governance & Commissioning",Grants and Contributions to Outside Bodies- No Service Recei,06/06/13,IJ00022645,3205.78,LUDFORD & DISTRICT PLAYING FIELDS ASSOC, 
East Lindsey District Council,http://statistics.data.gov.uk/id/local-authority/32UC,Hsg Private Sector TL,Grants and Contributions to Outside Bodies- No Service Recei,06/06/13,IJ00022864,2725.20,THM CONSTRUCTION, 
East Lindsey District Council,http://statistics.data.gov.uk/id/local-authority/32UC,"Performance, Governance & Commissioning",Subscriptions to Organisations and Other Bodies,06/06/13,IJ00022875,560.00,THE INFORMATION COMMISSIONER, 
East Lindsey District Council,http://statistics.data.gov.uk/id/local-authority/32UC,Theatre Manager,Performers and Entertainers Fees,06/06/13,IJ00022754,5358.63,LISA JAY STAGE INSTITUTE, 
East Lindsey District Council,http://statistics.data.gov.uk/id/local-authority/32UC,Waste Services Manager,Materials and Consumables,06/06/13,IJ00022636,6660.00,ESE LTD, 
East Lindsey District Council,http://statistics.data.gov.uk/id/local-authority/32UC,Waste Services Manager,Materials and Consumables,06/06/13,IJ00022682,7555.00,ESE LTD, 
East Lindsey District Council,http://statistics.data.gov.uk/id/local-authority/32UC,Economic & Tourism,Grants and Contributions to Outside Bodies- No Service Recei,06/06/13,IJ00022730,5000.00,SKILLSREACH, 
East Lindsey District Council,http://statistics.data.gov.uk/id/local-authority/32UC,Economic & Tourism,Cleaning Contract,06/06/13,IJ00022675,696.00,EASY CLEAN MARSHCHAPEL LTD, 
East Lindsey District Council,http://statistics.data.gov.uk/id/local-authority/32UC,Economic & Tourism,Cleaning Contract,06/06/13,IJ00022885,696.00,EASY CLEAN MARSHCHAPEL LTD, 
East Lindsey District Council,http://statistics.data.gov.uk/id/local-authority/32UC,Theatre Manager,Performers and Entertainers Fees,06/06/13,IJ00022847,2173.64,NORWELL LAPLEY PRODUCTIONS LTD, 
East Lindsey District Council,http://statistics.data.gov.uk/id/local-authority/32UC,Theatre Manager,Performers and Entertainers Fees,06/06/13,IJ00022847,-414.00,NORWELL LAPLEY PRODUCTIONS LTD, 
East Lindsey District Council,http://statistics.data.gov.uk/id/local-authority/32UC,Cultural & Related Services,Public Courses and Workshops,06/06/13,IJ00022672,625.00,CMS TRAINING, 
East Lindsey District Council,http://statistics.data.gov.uk/id/local-authority/32UC,Revenues & Benefits,Other Miscellaneous Expenses,12/06/13,IJ00023031,4214.38,ALLPAY NET LTD, 
East Lindsey District Council,http://statistics.data.gov.uk/id/local-authority/32UC,Revenues & Benefits,Other Miscellaneous Expenses,12/06/13,IJ00023031,4.00,ALLPAY NET LTD, 
East Lindsey District Council,http://statistics.data.gov.uk/id/local-authority/32UC,Revenues & Benefits,Other Miscellaneous Expenses,12/06/13,IJ00023031,80.05,ALLPAY NET LTD, 
East Lindsey District Council,http://statistics.data.gov.uk/id/local-authority/32UC,Leisure Operations,Other Private Contractors,13/06/13,IJ00022963,911.48,BIFFA WASTE SERVICES LTD, 
East Lindsey District Council,http://statistics.data.gov.uk/id/local-authority/32UC,TL Property,Other Private Contractors,13/06/13,IJ00022963,46.64,BIFFA WASTE SERVICES LTD, 
East Lindsey District Council,http://statistics.data.gov.uk/id/local-authority/32UC,Leisure Operations,Other local authorities,13/06/13,IJ00022963,46.64,BIFFA WASTE SERVICES LTD, 
East Lindsey District Council,http://statistics.data.gov.uk/id/local-authority/32UC,Neighbourhood Services,Professional & Contractors Fees,13/06/13,IJ00023116,1450.20,SID DENNIS & SONS LTD, 
East Lindsey District Council,http://statistics.data.gov.uk/id/local-authority/32UC,Neighbourhood Services,Professional & Contractors Fees,13/06/13,IJ00023117,410.00,SID DENNIS & SONS LTD, 
East Lindsey District Council,http://statistics.data.gov.uk/id/local-authority/32UC,Neighbourhood Services,Professional & Contractors Fees,13/06/13,IJ00023117,220.00,SID DENNIS & SONS LTD, 
East Lindsey District Council,http://statistics.data.gov.uk/id/local-authority/32UC,Neighbourhood Services,Professional & Contractors Fees,13/06/13,IJ00023121,567.20,SID DENNIS & SONS LTD, 
East Lindsey District Council,http://statistics.data.gov.uk/id/local-authority/32UC,Leisure Operations,Materials and Consumables,13/06/13,IJ00023015,616.95,STOWLIN LTD, 
East Lindsey District Council,http://statistics.data.gov.uk/id/local-authority/32UC,Neighbourhood Services,Materials and Consumables,13/06/13,IJ00023097,687.00,STOWLIN LTD, 
East Lindsey District Council,http://statistics.data.gov.uk/id/local-authority/32UC,Neighbourhood Services,Materials and Consumables,13/06/13,IJ00023098,545.30,STOWLIN LTD, 
East Lindsey District Council,http://statistics.data.gov.uk/id/local-authority/32UC,Capital WIP,Works to Buildings (main Contractor),13/06/13,IJ00023096,172.02,KENMOR BUILDING & CONSTRUCTION SERVICES, 
East Lindsey District Council,http://statistics.data.gov.uk/id/local-authority/32UC,Neighbourhood Services,Buildings Maintenance - Responsive,13/06/13,IJ00023096,508.00,KENMOR BUILDING & CONSTRUCTION SERVICES, 
East Lindsey District Council,http://statistics.data.gov.uk/id/local-authority/32UC,"Performance, Governance & Commissioning",Postages,13/06/13,IJ00022980,1713.84,ROYAL MAIL, 
East Lindsey District Council,http://statistics.data.gov.uk/id/local-authority/32UC,Economic & Tourism,Other Miscellaneous Expenses,13/06/13,IJ00023119,5000.00,LINCOLNSHIRE COUNTY COUNCIL, 
East Lindsey District Council,http://statistics.data.gov.uk/id/local-authority/32UC,Information Technology,Computer Software Licence Costs,13/06/13,IJ00022966,553.00,CROWN COMPUTING LIMITED, 
East Lindsey District Council,http://statistics.data.gov.uk/id/local-authority/32UC,Leisure Operations,Electricity,13/06/13,IJ00023140,1913.59,SOUTHERN ELECTRIC PLC, 
East Lindsey District Council,http://statistics.data.gov.uk/id/local-authority/32UC,Economic & Tourism,Other Miscellaneous Expenses,13/06/13,IJ00023158,500.00,LINCS FARM & COUNTRYSIDE ATTRACTIONS, 
East Lindsey District Council,http://statistics.data.gov.uk/id/local-authority/32UC,Neighbourhood Services,Professional & Contractors Fees,13/06/13,IJ00023051,1110.00,EKM LTD, 
East Lindsey District Council,http://statistics.data.gov.uk/id/local-authority/32UC,BALANCE  SHEET,Payroll Sacrifice Nursery Voucher,13/06/13,IJ00023145,2857.50,SODEXHO, 
East Lindsey District Council,http://statistics.data.gov.uk/id/local-authority/32UC,Enforcement Team Leader,Other Miscellaneous Expenses,13/06/13,IJ00023128,3451.50,METRIC GROUP LTD, 
East Lindsey District Council,http://statistics.data.gov.uk/id/local-authority/32UC,Hsg Private Sector TL,Stationery,13/06/13,IJ00023052,14.00,ESPO, 
East Lindsey District Council,http://statistics.data.gov.uk/id/local-authority/32UC,Hsg Private Sector TL,Stationery,13/06/13,IJ00023052,19.36,ESPO, 
East Lindsey District Council,http://statistics.data.gov.uk/id/local-authority/32UC,Neighbourhood Services,Materials and Consumables,13/06/13,IJ00023052,2703.44,ESPO, 
East Lindsey District Council,http://statistics.data.gov.uk/id/local-authority/32UC,Economic & Tourism,Materials and Consumables,13/06/13,IJ00023052,21.70,ESPO, 
East Lindsey District Council,http://statistics.data.gov.uk/id/local-authority/32UC,Hsg Advice & Homelessness TL,Stationery,13/06/13,IJ00023074,12.50,ESPO, 
East Lindsey District Council,http://statistics.data.gov.uk/id/local-authority/32UC,Neighbourhood Services,Materials and Consumables,13/06/13,IJ00023074,702.89,ESPO, 
East Lindsey District Council,http://statistics.data.gov.uk/id/local-authority/32UC,Neighbourhood Services,Materials and Consumables,13/06/13,IJ00023074,1535.50,ESPO, 
East Lindsey District Council,http://statistics.data.gov.uk/id/local-authority/32UC,Leisure Operations,Furniture and Equipment,13/06/13,IJ00023074,30.00,ESPO, 
East Lindsey District Council,http://statistics.data.gov.uk/id/local-authority/32UC,"Performance, Governance & Commissioning",Stationery,13/06/13,IJ00023074,36.05,ESPO, 
East Lindsey District Council,http://statistics.data.gov.uk/id/local-authority/32UC,Economic & Tourism,Materials and Consumables,13/06/13,IJ00023074,16.00,ESPO, 
East Lindsey District Council,http://statistics.data.gov.uk/id/local-authority/32UC,Leisure Operations,Stationery,13/06/13,IJ00023074,5.47,ESPO, 
East Lindsey District Council,http://statistics.data.gov.uk/id/local-authority/32UC,Hsg Advice & Homelessness TL,Furniture and Equipment,13/06/13,IJ00023074,145.00,ESPO, 
East Lindsey District Council,http://statistics.data.gov.uk/id/local-authority/32UC,Leisure Operations,Other Miscellaneous Expenses,13/06/13,IJ00023146,524.28,DEE BEE, 
East Lindsey District Council,http://statistics.data.gov.uk/id/local-authority/32UC,TL Property,Rent and Lease Payments,13/06/13,IJ00023019,6250.00,SKEG GRAIN LTD, 
East Lindsey District Council,http://statistics.data.gov.uk/id/local-authority/32UC,Information Technology,Computer Hardware Purchase,13/06/13,IJ00023003,4237.50,INSIGHT DIRECT (UK) LTD, 
East Lindsey District Council,http://statistics.data.gov.uk/id/local-authority/32UC,Waste Services Manager,Agency Staff,13/06/13,IJ00023072,7674.83,CLOSE INVOICE FINANCE LTD, 
East Lindsey District Council,http://statistics.data.gov.uk/id/local-authority/32UC,TL Property,Electricity,13/06/13,IJ00023141,2008.21,E.ON ENERGY, 
East Lindsey District Council,http://statistics.data.gov.uk/id/local-authority/32UC,Neighbourhood Services,Electricity,13/06/13,IJ00023141,6.40,E.ON ENERGY, 
East Lindsey District Council,http://statistics.data.gov.uk/id/local-authority/32UC,Enforcement Team Leader,Electricity,13/06/13,IJ00023141,6.09,E.ON ENERGY, 
East Lindsey District Council,http://statistics.data.gov.uk/id/local-authority/32UC,Enforcement Team Leader,Electricity,13/06/13,IJ00023141,19.12,E.ON ENERGY, 
East Lindsey District Council,http://statistics.data.gov.uk/id/local-authority/32UC,Enforcement Team Leader,Electricity,13/06/13,IJ00023141,17.43,E.ON ENERGY, 
East Lindsey District Council,http://statistics.data.gov.uk/id/local-authority/32UC,Enforcement Team Leader,Electricity,13/06/13,IJ00023141,19.23,E.ON ENERGY, 
East Lindsey District Council,http://statistics.data.gov.uk/id/local-authority/32UC,Enforcement Team Leader,Electricity,13/06/13,IJ00023141,39.57,E.ON ENERGY, 
East Lindsey District Council,http://statistics.data.gov.uk/id/local-authority/32UC,Enforcement Team Leader,Electricity,13/06/13,IJ00023141,8.20,E.ON ENERGY, 
East Lindsey District Council,http://statistics.data.gov.uk/id/local-authority/32UC,Enforcement Team Leader,Electricity,13/06/13,IJ00023141,13.19,E.ON ENERGY, 
East Lindsey District Council,http://statistics.data.gov.uk/id/local-authority/32UC,Enforcement Team Leader,Payments to Bodies in Respect of Income Collected,13/06/13,IJ00023166,1789.70,INNES ENGLAND COMMERCIAL PROPERTY, 
East Lindsey District Council,http://statistics.data.gov.uk/id/local-authority/32UC,"Performance, Governance & Commissioning",Other Miscellaneous Expenses,13/06/13,IJ00022990,7115.40,CLOCKWORK REMOVALS & STORAGE, 
East Lindsey District Council,http://statistics.data.gov.uk/id/local-authority/32UC,Development Control,Banking Charges,13/06/13,IJ00023157,5.79,CAPITA BUSINESS SERVICES LTD, 
East Lindsey District Council,http://statistics.data.gov.uk/id/local-authority/32UC,Corporate Accounting,Banking Charges,13/06/13,IJ00023157,855.29,CAPITA BUSINESS SERVICES LTD, 
East Lindsey District Council,http://statistics.data.gov.uk/id/local-authority/32UC,Corporate Management,Banking Charges,13/06/13,IJ00023157,69.63,CAPITA BUSINESS SERVICES LTD, 
East Lindsey District Council,http://statistics.data.gov.uk/id/local-authority/32UC,Corporate Management,Banking Charges,13/06/13,IJ00023157,2619.78,CAPITA BUSINESS SERVICES LTD, 
East Lindsey District Council,http://statistics.data.gov.uk/id/local-authority/32UC,Corporate Management,Banking Charges,13/06/13,IJ00023157,73.66,CAPITA BUSINESS SERVICES LTD, 
East Lindsey District Council,http://statistics.data.gov.uk/id/local-authority/32UC,Corporate Management,Banking Charges,13/06/13,IJ00023157,38.00,CAPITA BUSINESS SERVICES LTD, 
East Lindsey District Council,http://statistics.data.gov.uk/id/local-authority/32UC,Hsg Private Sector TL,Other Income,13/06/13,IJ00023155,-1011.00,DOLPHIN MOBILITY EAST MIDLANDS, 
East Lindsey District Council,http://statistics.data.gov.uk/id/local-authority/32UC,Hsg Private Sector TL,Grants and Contributions to Outside Bodies- No Service Recei,13/06/13,IJ00023155,11323.20,DOLPHIN MOBILITY EAST MIDLANDS, 
East Lindsey District Council,http://statistics.data.gov.uk/id/local-authority/32UC,Cultural & Related Services,Advertising - Events,13/06/13,IJ00022973,23889.45,LAVA, 
East Lindsey District Council,http://statistics.data.gov.uk/id/local-authority/32UC,Development Control,Agency Staff,13/06/13,IJ00023044,5970.64,LGS LIMITED, 
East Lindsey District Council,http://statistics.data.gov.uk/id/local-authority/32UC,Development Control,Professional & Contractors Fees,13/06/13,IJ00021669,1237.50,FPCR LLP, 
East Lindsey District Council,http://statistics.data.gov.uk/id/local-authority/32UC,Leisure Operations,Professional & Contractors Fees,13/06/13,IJ00023016,995.00,DONNA MAHER, 
East Lindsey District Council,http://statistics.data.gov.uk/id/local-authority/32UC,Cultural & Related Services,Voluntary associations,13/06/13,IJ00023171,22396.39,WOODHALL SPA COTTAGE MUSEUM, 
East Lindsey District Council,http://statistics.data.gov.uk/id/local-authority/32UC,Corporate Accounting,Compass Point Business Services,13/06/13,IJ00023165,421415.96,COMPASS POINT BUSINESS SERVICES, 
East Lindsey District Council,http://statistics.data.gov.uk/id/local-authority/32UC,Economic & Tourism,Clothing Uniforms And Laundry,13/06/13,IJ00023120,1396.42,PHS LAUNDRYSERV, 
East Lindsey District Council,http://statistics.data.gov.uk/id/local-authority/32UC,TL Property,Maintenance,13/06/13,IJ00023075,529.40,RS MECHANICAL SERVICES, 
East Lindsey District Council,http://statistics.data.gov.uk/id/local-authority/32UC,"Performance, Governance & Commissioning",External Printing and Design Costs,13/06/13,IJ00022969,4291.00,DEMOCRACY COUNTS LIMITED, 
East Lindsey District Council,http://statistics.data.gov.uk/id/local-authority/32UC,"Performance, Governance & Commissioning",External Printing and Design Costs,13/06/13,IJ00022970,1952.25,DEMOCRACY COUNTS LIMITED, 
East Lindsey District Council,http://statistics.data.gov.uk/id/local-authority/32UC,"Performance, Governance & Commissioning",Postages,13/06/13,IJ00022971,1225.00,DEMOCRACY COUNTS LIMITED, 
East Lindsey District Council,http://statistics.data.gov.uk/id/local-authority/32UC,Neighbourhood Services,Water and Sewerage Charges,13/06/13,IJ00023136,2025.38,ANGLIAN WATER, 
East Lindsey District Council,http://statistics.data.gov.uk/id/local-authority/32UC,Leisure Operations,Water and Sewerage Charges,13/06/13,IJ00023139,1457.09,ANGLIAN WATER, 
East Lindsey District Council,http://statistics.data.gov.uk/id/local-authority/32UC,Corporate Accounting,External Audit Fees,13/06/13,IJ00022989,16865.00,KPMG LLP, 
East Lindsey District Council,http://statistics.data.gov.uk/id/local-authority/32UC,Economic & Tourism,Cleaning Contract,13/06/13,IJ00022887,760.32,EASY CLEAN MARSHCHAPEL LTD, 
East Lindsey District Council,http://statistics.data.gov.uk/id/local-authority/32UC,Neighbourhood Services,Materials and Consumables,13/06/13,IJ00022888,924.40,NOMIX ENVIRO, 
East Lindsey District Council,http://statistics.data.gov.uk/id/local-authority/32UC,Waste Services Manager,Telephones,13/06/13,IJ00023142,11.30,DAISY COMMUNICATIONS LTD, 
East Lindsey District Council,http://statistics.data.gov.uk/id/local-authority/32UC,Enforcement Team Leader,Other agencies,13/06/13,IJ00023142,22.34,DAISY COMMUNICATIONS LTD, 
East Lindsey District Council,http://statistics.data.gov.uk/id/local-authority/32UC,Customer Services Manager,Telephones,13/06/13,IJ00023142,44.82,DAISY COMMUNICATIONS LTD, 
East Lindsey District Council,http://statistics.data.gov.uk/id/local-authority/32UC,Theatre Manager,Telephones,13/06/13,IJ00023142,54.95,DAISY COMMUNICATIONS LTD, 
East Lindsey District Council,http://statistics.data.gov.uk/id/local-authority/32UC,Theatre Manager,Telephones,13/06/13,IJ00023142,58.06,DAISY COMMUNICATIONS LTD, 
East Lindsey District Council,http://statistics.data.gov.uk/id/local-authority/32UC,Hsg Private Sector TL,Telephones,13/06/13,IJ00023142,11.08,DAISY COMMUNICATIONS LTD, 
East Lindsey District Council,http://statistics.data.gov.uk/id/local-authority/32UC,Enforcement Team Leader,Telephones,13/06/13,IJ00023142,10.99,DAISY COMMUNICATIONS LTD, 
East Lindsey District Council,http://statistics.data.gov.uk/id/local-authority/32UC,Building Control,Telephones,13/06/13,IJ00023142,51.69,DAISY COMMUNICATIONS LTD, 
East Lindsey District Council,http://statistics.data.gov.uk/id/local-authority/32UC,Economic & Tourism,Grants and Contributions to Outside Bodies- No Service Recei,13/06/13,IJ00023142,22.43,DAISY COMMUNICATIONS LTD, 
East Lindsey District Council,http://statistics.data.gov.uk/id/local-authority/32UC,Housing Support TL,Telephones,13/06/13,IJ00023142,11.02,DAISY COMMUNICATIONS LTD, 
East Lindsey District Council,http://statistics.data.gov.uk/id/local-authority/32UC,Economic & Tourism,Telephones,13/06/13,IJ00023142,43.29,DAISY COMMUNICATIONS LTD, 
East Lindsey District Council,http://statistics.data.gov.uk/id/local-authority/32UC,Corporate Management,Telephones,13/06/13,IJ00023142,1873.38,DAISY COMMUNICATIONS LTD, 
East Lindsey District Council,http://statistics.data.gov.uk/id/local-authority/32UC,Corporate Management,Telephones,13/06/13,IJ00023142,843.39,DAISY COMMUNICATIONS LTD, 
East Lindsey District Council,http://statistics.data.gov.uk/id/local-authority/32UC,Commercial Team Leader,Telephones,13/06/13,IJ00023142,11.03,DAISY COMMUNICATIONS LTD, 
East Lindsey District Council,http://statistics.data.gov.uk/id/local-authority/32UC,TL Property,Telephones,13/06/13,IJ00023142,11.01,DAISY COMMUNICATIONS LTD, 
East Lindsey District Council,http://statistics.data.gov.uk/id/local-authority/32UC,Information Technology,Telephones,13/06/13,IJ00023142,83.78,DAISY COMMUNICATIONS LTD, 
East Lindsey District Council,http://statistics.data.gov.uk/id/local-authority/32UC,Information Technology,Telephones,13/06/13,IJ00023142,21.98,DAISY COMMUNICATIONS LTD, 
East Lindsey District Council,http://statistics.data.gov.uk/id/local-authority/32UC,Leisure Operations,Telephones,13/06/13,IJ00023142,153.66,DAISY COMMUNICATIONS LTD, 
East Lindsey District Council,http://statistics.data.gov.uk/id/local-authority/32UC,Leisure Operations,Telephones,13/06/13,IJ00023142,81.65,DAISY COMMUNICATIONS LTD, 
East Lindsey District Council,http://statistics.data.gov.uk/id/local-authority/32UC,Economic & Tourism,Telephones,13/06/13,IJ00023142,447.03,DAISY COMMUNICATIONS LTD, 
East Lindsey District Council,http://statistics.data.gov.uk/id/local-authority/32UC,Economic & Tourism,Telephones,13/06/13,IJ00023142,448.85,DAISY COMMUNICATIONS LTD, 
East Lindsey District Council,http://statistics.data.gov.uk/id/local-authority/32UC,Economic & Tourism,Telephones,13/06/13,IJ00023142,308.81,DAISY COMMUNICATIONS LTD, 
East Lindsey District Council,http://statistics.data.gov.uk/id/local-authority/32UC,Leisure Operations,Telephones,13/06/13,IJ00023142,44.92,DAISY COMMUNICATIONS LTD, 
East Lindsey District Council,http://statistics.data.gov.uk/id/local-authority/32UC,Leisure Operations,Telephones,13/06/13,IJ00023142,10.99,DAISY COMMUNICATIONS LTD, 
East Lindsey District Council,http://statistics.data.gov.uk/id/local-authority/32UC,Leisure Operations,Telephones,13/06/13,IJ00023142,10.99,DAISY COMMUNICATIONS LTD, 
East Lindsey District Council,http://statistics.data.gov.uk/id/local-authority/32UC,Leisure Operations,Telephones,13/06/13,IJ00023142,64.07,DAISY COMMUNICATIONS LTD, 
East Lindsey District Council,http://statistics.data.gov.uk/id/local-authority/32UC,TL Property,Telephones,13/06/13,IJ00023142,10.99,DAISY COMMUNICATIONS LTD, 
East Lindsey District Council,http://statistics.data.gov.uk/id/local-authority/32UC,TL Property,Telephones,13/06/13,IJ00023142,11.04,DAISY COMMUNICATIONS LTD, 
East Lindsey District Council,http://statistics.data.gov.uk/id/local-authority/32UC,TL Property,Telephones,13/06/13,IJ00023142,22.31,DAISY COMMUNICATIONS LTD, 
East Lindsey District Council,http://statistics.data.gov.uk/id/local-authority/32UC,TL Property,Telephones,13/06/13,IJ00023142,10.99,DAISY COMMUNICATIONS LTD, 
East Lindsey District Council,http://statistics.data.gov.uk/id/local-authority/32UC,TL Property,Telephones,13/06/13,IJ00023142,45.76,DAISY COMMUNICATIONS LTD, 
East Lindsey District Council,http://statistics.data.gov.uk/id/local-authority/32UC,Leisure Operations,Telephones,13/06/13,IJ00023142,23.11,DAISY COMMUNICATIONS LTD, 
East Lindsey District Council,http://statistics.data.gov.uk/id/local-authority/32UC,Leisure Operations,Telephones,13/06/13,IJ00023142,42.03,DAISY COMMUNICATIONS LTD, 
East Lindsey District Council,http://statistics.data.gov.uk/id/local-authority/32UC,Leisure Operations,Telephones,13/06/13,IJ00023142,10.99,DAISY COMMUNICATIONS LTD, 
East Lindsey District Council,http://statistics.data.gov.uk/id/local-authority/32UC,Neighbourhood Services,Telephones,13/06/13,IJ00023142,15.31,DAISY COMMUNICATIONS LTD, 
East Lindsey District Council,http://statistics.data.gov.uk/id/local-authority/32UC,Neighbourhood Services,Telephones,13/06/13,IJ00023142,10.99,DAISY COMMUNICATIONS LTD, 
East Lindsey District Council,http://statistics.data.gov.uk/id/local-authority/32UC,Neighbourhood Services,Telephones,13/06/13,IJ00023142,22.88,DAISY COMMUNICATIONS LTD, 
East Lindsey District Council,http://statistics.data.gov.uk/id/local-authority/32UC,TL Property,Telephones,13/06/13,IJ00023142,10.99,DAISY COMMUNICATIONS LTD, 
East Lindsey District Council,http://statistics.data.gov.uk/id/local-authority/32UC,TL Property,Telephones,13/06/13,IJ00023142,11.24,DAISY COMMUNICATIONS LTD, 
East Lindsey District Council,http://statistics.data.gov.uk/id/local-authority/32UC,TL Property,Telephones,13/06/13,IJ00023142,10.99,DAISY COMMUNICATIONS LTD, 
East Lindsey District Council,http://statistics.data.gov.uk/id/local-authority/32UC,Theatre Manager,Telephones,13/06/13,IJ00023142,12.71,DAISY COMMUNICATIONS LTD, 
East Lindsey District Council,http://statistics.data.gov.uk/id/local-authority/32UC,TL Property,Telephones,13/06/13,IJ00023142,33.70,DAISY COMMUNICATIONS LTD, 
East Lindsey District Council,http://statistics.data.gov.uk/id/local-authority/32UC,Corporate Management,Telephones,13/06/13,IJ00023142,10.99,DAISY COMMUNICATIONS LTD, 
East Lindsey District Council,http://statistics.data.gov.uk/id/local-authority/32UC,Corporate Management,Telephones,13/06/13,IJ00023142,21.98,DAISY COMMUNICATIONS LTD, 
East Lindsey District Council,http://statistics.data.gov.uk/id/local-authority/32UC,Collection Fund,Payment to NNDR Pool,19/06/13,IJ00023338,2384413.00,DEPARTMENT FOR COMMUNITIES AND LOCAL, 
East Lindsey District Council,http://statistics.data.gov.uk/id/local-authority/32UC,Corporate Management,Subscriptions to Organisations and Other Bodies,20/06/13,IJ00023255,1150.00,AUDIT COMMISSION, 
East Lindsey District Council,http://statistics.data.gov.uk/id/local-authority/32UC,Theatre Manager,Other Private Contractors,20/06/13,IJ00023186,31.52,BIFFA WASTE SERVICES LTD, 
East Lindsey District Council,http://statistics.data.gov.uk/id/local-authority/32UC,Theatre Manager,Other Private Contractors,20/06/13,IJ00023186,93.28,BIFFA WASTE SERVICES LTD, 
East Lindsey District Council,http://statistics.data.gov.uk/id/local-authority/32UC,Economic & Tourism,Other Private Contractors,20/06/13,IJ00023186,139.92,BIFFA WASTE SERVICES LTD, 
East Lindsey District Council,http://statistics.data.gov.uk/id/local-authority/32UC,Leisure Operations,Other Private Contractors,20/06/13,IJ00023186,46.64,BIFFA WASTE SERVICES LTD, 
East Lindsey District Council,http://statistics.data.gov.uk/id/local-authority/32UC,Leisure Operations,Other Private Contractors,20/06/13,IJ00023186,46.64,BIFFA WASTE SERVICES LTD, 
East Lindsey District Council,http://statistics.data.gov.uk/id/local-authority/32UC,Leisure Operations,Other Private Contractors,20/06/13,IJ00023186,233.20,BIFFA WASTE SERVICES LTD, 
East Lindsey District Council,http://statistics.data.gov.uk/id/local-authority/32UC,TL Property,Other Private Contractors,20/06/13,IJ00023186,320.28,BIFFA WASTE SERVICES LTD, 
East Lindsey District Council,http://statistics.data.gov.uk/id/local-authority/32UC,Leisure Operations,Other Private Contractors,20/06/13,IJ00023186,93.28,BIFFA WASTE SERVICES LTD, 
East Lindsey District Council,http://statistics.data.gov.uk/id/local-authority/32UC,"Performance, Governance & Commissioning",Rent and Lease Payments,20/06/13,IJ00023177,2306.46,EAST LINDSEY DISTRICT COUNCIL, 
East Lindsey District Council,http://statistics.data.gov.uk/id/local-authority/32UC,Economic & Tourism,Buildings Maintenance - Responsive,20/06/13,IJ00023382,63.46,HARLITE INSTALLATIONS LTD, 
East Lindsey District Council,http://statistics.data.gov.uk/id/local-authority/32UC,TL Property,Buildings Maintenance - Responsive,20/06/13,IJ00023382,669.07,HARLITE INSTALLATIONS LTD, 
East Lindsey District Council,http://statistics.data.gov.uk/id/local-authority/32UC,Enforcement Team Leader,Buildings Maintenance - Responsive,20/06/13,IJ00023382,35.42,HARLITE INSTALLATIONS LTD, 
East Lindsey District Council,http://statistics.data.gov.uk/id/local-authority/32UC,Economic & Tourism,Materials and Consumables,20/06/13,IJ00023198,1662.00,JACKSON BUILDING CENTRES LTD, 
East Lindsey District Council,http://statistics.data.gov.uk/id/local-authority/32UC,Hsg Private Sector TL,Other Miscellaneous Expenses,20/06/13,IJ00023204,1500.00,NORTH KESTEVEN DISTRICT COUNCIL, 
East Lindsey District Council,http://statistics.data.gov.uk/id/local-authority/32UC,Information Technology,Computer Hardware Maintenance,20/06/13,IJ00023290,1992.72,NORTH KESTEVEN DISTRICT COUNCIL, 
East Lindsey District Council,http://statistics.data.gov.uk/id/local-authority/32UC,Hsg Private Sector TL,Other Income,20/06/13,IJ00023374,-345.38,SIBJON BUILDERS, 
East Lindsey District Council,http://statistics.data.gov.uk/id/local-authority/32UC,Hsg Private Sector TL,Grants and Contributions to Outside Bodies- No Service Recei,20/06/13,IJ00023374,3868.27,SIBJON BUILDERS, 
East Lindsey District Council,http://statistics.data.gov.uk/id/local-authority/32UC,Hsg Private Sector TL,Other Income,20/06/13,IJ00023375,-609.94,SIBJON BUILDERS, 
East Lindsey District Council,http://statistics.data.gov.uk/id/local-authority/32UC,Hsg Private Sector TL,Grants and Contributions to Outside Bodies- No Service Recei,20/06/13,IJ00023375,6831.34,SIBJON BUILDERS, 
East Lindsey District Council,http://statistics.data.gov.uk/id/local-authority/32UC,Leisure Operations,Materials and Consumables,20/06/13,IJ00023193,853.19,STOWLIN LTD, 
East Lindsey District Council,http://statistics.data.gov.uk/id/local-authority/32UC,Leisure Operations,Furniture and Equipment,20/06/13,IJ00023257,1180.00,CONTINENTAL SPORTS LTD, 
East Lindsey District Council,http://statistics.data.gov.uk/id/local-authority/32UC,Development Control,Planning Application Fees,20/06/13,IJ00023202,770.00,GRIMOLDBY PRIMARY SCHOOL, 
East Lindsey District Council,http://statistics.data.gov.uk/id/local-authority/32UC,Hsg Advice & Homelessness TL,Rent and Lease Payments,20/06/13,IJ00023289,2488.50,LONGHURST HOMES, 
East Lindsey District Council,http://statistics.data.gov.uk/id/local-authority/32UC,Customer Services Manager,Operational Buildings Apportionment,20/06/13,IJ00023388,1247.45,LINCOLNSHIRE COUNTY COUNCIL, 
East Lindsey District Council,http://statistics.data.gov.uk/id/local-authority/32UC,Waste Services Manager,Fuel & Oil,20/06/13,IJ00023262,21003.71,WATSON PETROLEUM LTD, 
East Lindsey District Council,http://statistics.data.gov.uk/id/local-authority/32UC,Waste Services Manager,Fuel & Oil,20/06/13,IJ00023263,6633.51,WATSON PETROLEUM LTD, 
East Lindsey District Council,http://statistics.data.gov.uk/id/local-authority/32UC,Neighbourhood Services,Fuel & Oil,20/06/13,IJ00023264,1012.50,WATSON PETROLEUM LTD, 
East Lindsey District Council,http://statistics.data.gov.uk/id/local-authority/32UC,Leisure Operations,Professional & Contractors Fees,20/06/13,IJ00023272,844.16,TOWN & COUNTRY KIDDIES, 
East Lindsey District Council,http://statistics.data.gov.uk/id/local-authority/32UC,"Performance, Governance & Commissioning",Grants and Contributions to Outside Bodies- No Service Recei,20/06/13,IJ00023302,500.00,INGOLDMELLS PARISH COUNCIL, 
East Lindsey District Council,http://statistics.data.gov.uk/id/local-authority/32UC,Hsg Private Sector TL,Other Income,20/06/13,IJ00023369,-511.54,KES BUILDING MAINTENANCE LTD, 
East Lindsey District Council,http://statistics.data.gov.uk/id/local-authority/32UC,Hsg Private Sector TL,Grants and Contributions to Outside Bodies- No Service Recei,20/06/13,IJ00023369,5729.27,KES BUILDING MAINTENANCE LTD, 
East Lindsey District Council,http://statistics.data.gov.uk/id/local-authority/32UC,Hsg Private Sector TL,Other Income,20/06/13,IJ00023373,-559.31,KES BUILDING MAINTENANCE LTD, 
East Lindsey District Council,http://statistics.data.gov.uk/id/local-authority/32UC,Hsg Private Sector TL,Grants and Contributions to Outside Bodies- No Service Recei,20/06/13,IJ00023373,6264.26,KES BUILDING MAINTENANCE LTD, 
East Lindsey District Council,http://statistics.data.gov.uk/id/local-authority/32UC,Theatre Manager,Performers and Entertainers Fees,20/06/13,IJ00023241,2420.17,MARK LUNDQUIST MANAGEMENT, 
East Lindsey District Council,http://statistics.data.gov.uk/id/local-authority/32UC,Theatre Manager,Performers and Entertainers Fees,20/06/13,IJ00023241,-288.00,MARK LUNDQUIST MANAGEMENT, 
East Lindsey District Council,http://statistics.data.gov.uk/id/local-authority/32UC,Revenues & Benefits,VAT Customs and Excise,20/06/13,IJ00023174,683.71,JACOBS, 
East Lindsey District Council,http://statistics.data.gov.uk/id/local-authority/32UC,Development Control,Stationery,20/06/13,IJ00023340,39.12,ESPO, 
East Lindsey District Council,http://statistics.data.gov.uk/id/local-authority/32UC,Leisure Operations,Materials and Consumables,20/06/13,IJ00023340,488.02,ESPO, 
East Lindsey District Council,http://statistics.data.gov.uk/id/local-authority/32UC,Leisure Operations,Materials and Consumables,20/06/13,IJ00023340,15.80,ESPO, 
East Lindsey District Council,http://statistics.data.gov.uk/id/local-authority/32UC,Neighbourhood Services,Materials and Consumables,20/06/13,IJ00023340,273.40,ESPO, 
East Lindsey District Council,http://statistics.data.gov.uk/id/local-authority/32UC,Leisure Operations,Cleaning Contract,20/06/13,IJ00023340,426.93,ESPO, 
East Lindsey District Council,http://statistics.data.gov.uk/id/local-authority/32UC,TL Property,Stationery,20/06/13,IJ00023340,17.70,ESPO, 
East Lindsey District Council,http://statistics.data.gov.uk/id/local-authority/32UC,Economic & Tourism,Materials and Consumables,20/06/13,IJ00023340,81.63,ESPO, 
East Lindsey District Council,http://statistics.data.gov.uk/id/local-authority/32UC,Economic & Tourism,Stationery,20/06/13,IJ00023340,49.80,ESPO, 
East Lindsey District Council,http://statistics.data.gov.uk/id/local-authority/32UC,Leisure Operations,Stationery,20/06/13,IJ00023340,20.25,ESPO, 
East Lindsey District Council,http://statistics.data.gov.uk/id/local-authority/32UC,Leisure Operations,Furniture and Equipment,20/06/13,IJ00023340,33.00,ESPO, 
East Lindsey District Council,http://statistics.data.gov.uk/id/local-authority/32UC,Leisure Operations,Fixtures And Fittings,20/06/13,IJ00023340,45.00,ESPO, 
East Lindsey District Council,http://statistics.data.gov.uk/id/local-authority/32UC,Leisure Operations,Other Miscellaneous Expenses,20/06/13,IJ00023282,906.83,DEE BEE, 
East Lindsey District Council,http://statistics.data.gov.uk/id/local-authority/32UC,Leisure Operations,Purchase Of Goods For Resale,20/06/13,IJ00023282,83.31,DEE BEE, 
East Lindsey District Council,http://statistics.data.gov.uk/id/local-authority/32UC,Theatre Manager,Performers and Entertainers Fees,20/06/13,IJ00023242,3337.08,MORNINGSIDE MANAGEMENT LTD, 
East Lindsey District Council,http://statistics.data.gov.uk/id/local-authority/32UC,Theatre Manager,Performers and Entertainers Fees,20/06/13,IJ00023242,-210.00,MORNINGSIDE MANAGEMENT LTD, 
East Lindsey District Council,http://statistics.data.gov.uk/id/local-authority/32UC,Hsg Private Sector TL,Grants and Contributions to Outside Bodies- No Service Recei,20/06/13,IJ00023370,4584.26,HUMBERSTONE BUILDING MAINTENANCE, 
East Lindsey District Council,http://statistics.data.gov.uk/id/local-authority/32UC,Hsg Private Sector TL,Other Income,20/06/13,IJ00023371,-457.62,HUMBERSTONE BUILDING MAINTENANCE, 
East Lindsey District Council,http://statistics.data.gov.uk/id/local-authority/32UC,Hsg Private Sector TL,Grants and Contributions to Outside Bodies- No Service Recei,20/06/13,IJ00023371,5125.38,HUMBERSTONE BUILDING MAINTENANCE, 
East Lindsey District Council,http://statistics.data.gov.uk/id/local-authority/32UC,TL Property,Buildings Maintenance - Programmed,20/06/13,IJ00023320,7849.87,VERE BROS (CONTRACTORS) LTD, 
East Lindsey District Council,http://statistics.data.gov.uk/id/local-authority/32UC,Hsg Private Sector TL,Grants and Contributions to Outside Bodies- No Service Recei,20/06/13,IJ00023368,7000.00,ANDREW BLADES BUILDING SERVICES LTD, 
East Lindsey District Council,http://statistics.data.gov.uk/id/local-authority/32UC,Hsg Advice & Homelessness TL,Grants and Contributions to Outside Bodies- No Service Recei,20/06/13,IJ00023227,1150.09,WEST LINDSEY DISTRICT COUNCIL, 
East Lindsey District Council,http://statistics.data.gov.uk/id/local-authority/32UC,Enforcement Team Leader,Payments to Bodies in Respect of Income Collected,20/06/13,IJ00023270,1889.38,INNES ENGLAND COMMERCIAL PROPERTY, 
East Lindsey District Council,http://statistics.data.gov.uk/id/local-authority/32UC,Hsg Private Sector TL,Other Income,20/06/13,IJ00023372,-505.29,RODDEN & COOPER, 
East Lindsey District Council,http://statistics.data.gov.uk/id/local-authority/32UC,Hsg Private Sector TL,Grants and Contributions to Outside Bodies- No Service Recei,20/06/13,IJ00023372,5659.25,RODDEN & COOPER, 
East Lindsey District Council,http://statistics.data.gov.uk/id/local-authority/32UC,"Performance, Governance & Commissioning",Grants and Contributions to Outside Bodies- No Service Recei,20/06/13,IJ00023306,13900.00,EAST LINDSEY CITIZENS ADVICE BUREAU, 
East Lindsey District Council,http://statistics.data.gov.uk/id/local-authority/32UC,Hsg Advice & Homelessness TL,Grants and Contributions to Outside Bodies- No Service Recei,20/06/13,IJ00023228,5000.00,EAST LINDSEY CITIZENS ADVICE BUREAU, 
East Lindsey District Council,http://statistics.data.gov.uk/id/local-authority/32UC,Leisure Operations,Professional & Contractors Fees,20/06/13,IJ00023276,523.25,AQUA VITA CAFE, 
East Lindsey District Council,http://statistics.data.gov.uk/id/local-authority/32UC,Cultural & Related Services,Professional & Contractors Fees,20/06/13,IJ00023392,93170.00,MAGNETIC EVENTS LTD, 
East Lindsey District Council,http://statistics.data.gov.uk/id/local-authority/32UC,Housing Support TL,Rent and Lease Payments,20/06/13,IJ00023269,937.50,TOTEMIC LTD, 
East Lindsey District Council,http://statistics.data.gov.uk/id/local-authority/32UC,Theatre Manager,Advertising - Events,20/06/13,IJ00023239,983.16,JOHNSTON PUBLISHING LTD, 
East Lindsey District Council,http://statistics.data.gov.uk/id/local-authority/32UC,Information Technology,Insurance,20/06/13,IJ00023291,795.00,MHS ALARM SERVICES LTD, 
East Lindsey District Council,http://statistics.data.gov.uk/id/local-authority/32UC,Leisure Operations,Other Private Contractors,20/06/13,IJ00023203,20034.00,LOUTH CRICKET CLUB, 
East Lindsey District Council,http://statistics.data.gov.uk/id/local-authority/32UC,Economic & Tourism,Other Miscellaneous Expenses,20/06/13,IJ00023195,1880.00,PG BRANDING, 
East Lindsey District Council,http://statistics.data.gov.uk/id/local-authority/32UC,Economic & Tourism,Other Miscellaneous Expenses,20/06/13,IJ00023196,2130.00,PG BRANDING, 
East Lindsey District Council,http://statistics.data.gov.uk/id/local-authority/32UC,Hsg Advice & Homelessness TL,Grants and Contributions to Outside Bodies- No Service Recei,20/06/13,IJ00023383,995.93,J TOMLINSON LTD, 
East Lindsey District Council,http://statistics.data.gov.uk/id/local-authority/32UC,Cultural & Related Services,Other Miscellaneous Expenses,20/06/13,IJ00023335,2700.00,GECKO LTD, 
East Lindsey District Council,http://statistics.data.gov.uk/id/local-authority/32UC,Waste Services Manager,Furniture and Equipment,20/06/13,IJ00023179,1290.83,MCFARLAND ENGINEERING, 
East Lindsey District Council,http://statistics.data.gov.uk/id/local-authority/32UC,Neighbourhood Services,Water and Sewerage Charges,20/06/13,IJ00023380,873.47,ANGLIAN WATER, 
East Lindsey District Council,http://statistics.data.gov.uk/id/local-authority/32UC,Planning & Housing Policy Manager,Other Revenue Grants Reimbursements & Contributions (Non - G,20/06/13,IJ00023292,20180.00,OPINION RESEARCH SERVICES LTD, 
East Lindsey District Council,http://statistics.data.gov.uk/id/local-authority/32UC,Corporate Accounting,Professional & Contractors Fees,20/06/13,IJ00023181,878.50,KINGS ARMOURED SECURITY SERVICES LTD, 
East Lindsey District Council,http://statistics.data.gov.uk/id/local-authority/32UC,Commercial Team Leader,Grants and Contributions to Outside Bodies- No Service Recei,24/06/13,IJ00023450,20792.67,LINCOLNSHIRE COUNTY COUNCIL, 
East Lindsey District Council,http://statistics.data.gov.uk/id/local-authority/32UC,"Performance, Governance & Commissioning",Agency Staff,24/06/13,IJ00023441,169.25,ASSOCIATION OF ELECTORAL ADMINISTRATORS, 
East Lindsey District Council,http://statistics.data.gov.uk/id/local-authority/32UC,"Performance, Governance & Commissioning",Agency Staff,24/06/13,IJ00023441,7095.42,ASSOCIATION OF ELECTORAL ADMINISTRATORS, 
East Lindsey District Council,http://statistics.data.gov.uk/id/local-authority/32UC,"Performance, Governance & Commissioning",Agency Staff,24/06/13,IJ00023442,17690.96,ASSOCIATION OF ELECTORAL ADMINISTRATORS, 
East Lindsey District Council,http://statistics.data.gov.uk/id/local-authority/32UC,"Performance, Governance & Commissioning",Agency Staff,24/06/13,IJ00023442,308.79,ASSOCIATION OF ELECTORAL ADMINISTRATORS, 
East Lindsey District Council,http://statistics.data.gov.uk/id/local-authority/32UC,Leisure Operations,Furniture and Equipment,24/06/13,IJ00023469,567.68,LIFE FITNESS, 
East Lindsey District Council,http://statistics.data.gov.uk/id/local-authority/32UC,Economic & Tourism,Grounds Maintenance Contract (External),24/06/13,IJ00023471,1900.00,VEOLIA ES (UK) LIMITED, 
East Lindsey District Council,http://statistics.data.gov.uk/id/local-authority/32UC,Waste Services Manager,Agency Staff,24/06/13,IJ00023466,6761.78,CLOSE INVOICE FINANCE LTD, 
East Lindsey District Council,http://statistics.data.gov.uk/id/local-authority/32UC,Leisure Operations,Purchase Of Goods For Resale,24/06/13,IJ00023412,1923.24,SRS LEISURE, 
East Lindsey District Council,http://statistics.data.gov.uk/id/local-authority/32UC,Leisure Operations,Purchase Of Goods For Resale,24/06/13,IJ00023462,1041.68,SRS LEISURE, 
East Lindsey District Council,http://statistics.data.gov.uk/id/local-authority/32UC,Theatre Manager,Banking Charges,26/06/13,IJ00023497,753.77,BARCLAYS MERCHANT SERVICES, 
East Lindsey District Council,http://statistics.data.gov.uk/id/local-authority/32UC,Theatre Manager,Banking Charges,26/06/13,IJ00023497,5.80,BARCLAYS MERCHANT SERVICES, 
East Lindsey District Council,http://statistics.data.gov.uk/id/local-authority/32UC,Economic & Tourism,Grants and Contributions to Outside Bodies- No Service Recei,27/06/13,IJ00023472,30000.00,GRS ELECTRICAL SERVICES LTD, 
East Lindsey District Council,http://statistics.data.gov.uk/id/local-authority/32UC,Capital WIP,Works to Buildings (main Contractor),27/06/13,IJ00023601,309.35,HARLITE INSTALLATIONS LTD, 
East Lindsey District Council,http://statistics.data.gov.uk/id/local-authority/32UC,Economic & Tourism,Buildings Maintenance - Responsive,27/06/13,IJ00023601,225.13,HARLITE INSTALLATIONS LTD, 
East Lindsey District Council,http://statistics.data.gov.uk/id/local-authority/32UC,Economic & Tourism,Buildings Maintenance - Responsive,27/06/13,IJ00023601,426.09,HARLITE INSTALLATIONS LTD, 
East Lindsey District Council,http://statistics.data.gov.uk/id/local-authority/32UC,TL Property,Buildings Maintenance - Responsive,27/06/13,IJ00023601,2258.19,HARLITE INSTALLATIONS LTD, 
East Lindsey District Council,http://statistics.data.gov.uk/id/local-authority/32UC,TL Property,Buildings Maintenance - Responsive,27/06/13,IJ00023601,2116.40,HARLITE INSTALLATIONS LTD, 
East Lindsey District Council,http://statistics.data.gov.uk/id/local-authority/32UC,Neighbourhood Services,Buildings Maintenance - Responsive,27/06/13,IJ00023601,64.18,HARLITE INSTALLATIONS LTD, 
East Lindsey District Council,http://statistics.data.gov.uk/id/local-authority/32UC,Neighbourhood Services,Buildings Maintenance - Responsive,27/06/13,IJ00023601,213.17,HARLITE INSTALLATIONS LTD, 
East Lindsey District Council,http://statistics.data.gov.uk/id/local-authority/32UC,Enforcement Team Leader,Buildings Maintenance - Responsive,27/06/13,IJ00023601,45.31,HARLITE INSTALLATIONS LTD, 
East Lindsey District Council,http://statistics.data.gov.uk/id/local-authority/32UC,TL Property,Buildings Maintenance - Responsive,27/06/13,IJ00023601,19.06,HARLITE INSTALLATIONS LTD, 
East Lindsey District Council,http://statistics.data.gov.uk/id/local-authority/32UC,Enforcement Team Leader,Buildings Maintenance - Responsive,27/06/13,IJ00023601,152.21,HARLITE INSTALLATIONS LTD, 
East Lindsey District Council,http://statistics.data.gov.uk/id/local-authority/32UC,Hsg Private Sector TL,Other Income,27/06/13,IJ00023606,-477.16,SIBJON BUILDERS, 
East Lindsey District Council,http://statistics.data.gov.uk/id/local-authority/32UC,Hsg Private Sector TL,Grants and Contributions to Outside Bodies- No Service Recei,27/06/13,IJ00023606,5344.18,SIBJON BUILDERS, 
East Lindsey District Council,http://statistics.data.gov.uk/id/local-authority/32UC,Neighbourhood Services,Materials and Consumables,27/06/13,IJ00023504,1123.90,STOWLIN LTD, 
East Lindsey District Council,http://statistics.data.gov.uk/id/local-authority/32UC,Neighbourhood Services,Materials and Consumables,27/06/13,IJ00023526,872.50,STOWLIN LTD, 
East Lindsey District Council,http://statistics.data.gov.uk/id/local-authority/32UC,Hsg Private Sector TL,Other Income,27/06/13,IJ00023604,-1185.18,COTTS BUILDERS AND CONTRACTORS, 
East Lindsey District Council,http://statistics.data.gov.uk/id/local-authority/32UC,Hsg Private Sector TL,Grants and Contributions to Outside Bodies- No Service Recei,27/06/13,IJ00023604,13273.97,COTTS BUILDERS AND CONTRACTORS, 
East Lindsey District Council,http://statistics.data.gov.uk/id/local-authority/32UC,Theatre Manager,Performers and Entertainers Fees,27/06/13,IJ00023498,2725.20,ETM LIMITED, 
East Lindsey District Council,http://statistics.data.gov.uk/id/local-authority/32UC,Theatre Manager,Performers and Entertainers Fees,27/06/13,IJ00023498,-210.00,ETM LIMITED, 
East Lindsey District Council,http://statistics.data.gov.uk/id/local-authority/32UC,Enforcement Team Leader,Professional & Contractors Fees,27/06/13,IJ00023494,3606.00,LINCOLNSHIRE COUNTY COUNCIL, 
East Lindsey District Council,http://statistics.data.gov.uk/id/local-authority/32UC,Theatre Manager,Buildings Maintenance - Programmed,27/06/13,IJ00023512,577.25,SEYMOUR & CASTLE LTD, 
East Lindsey District Council,http://statistics.data.gov.uk/id/local-authority/32UC,BALANCE  SHEET,Payroll-Unison,27/06/13,IJ00023560,1607.95,UNISON, 
East Lindsey District Council,http://statistics.data.gov.uk/id/local-authority/32UC,Leisure Operations,Electricity,27/06/13,IJ00023540,504.59,SOUTHERN ELECTRIC PLC, 
East Lindsey District Council,http://statistics.data.gov.uk/id/local-authority/32UC,TL Property,Electricity,27/06/13,IJ00023540,19.75,SOUTHERN ELECTRIC PLC, 
East Lindsey District Council,http://statistics.data.gov.uk/id/local-authority/32UC,Enforcement Team Leader,Electricity,27/06/13,IJ00023540,375.32,SOUTHERN ELECTRIC PLC, 
East Lindsey District Council,http://statistics.data.gov.uk/id/local-authority/32UC,Theatre Manager,Electricity,27/06/13,IJ00023568,1358.87,SOUTHERN ELECTRIC PLC, 
East Lindsey District Council,http://statistics.data.gov.uk/id/local-authority/32UC,Commercial Team Leader,Electricity,27/06/13,IJ00023568,23.92,SOUTHERN ELECTRIC PLC, 
East Lindsey District Council,http://statistics.data.gov.uk/id/local-authority/32UC,Leisure Operations,Electricity,27/06/13,IJ00023568,4363.69,SOUTHERN ELECTRIC PLC, 
East Lindsey District Council,http://statistics.data.gov.uk/id/local-authority/32UC,TL Property,Electricity,27/06/13,IJ00023568,241.96,SOUTHERN ELECTRIC PLC, 
East Lindsey District Council,http://statistics.data.gov.uk/id/local-authority/32UC,Economic & Tourism,Electricity,27/06/13,IJ00023568,442.65,SOUTHERN ELECTRIC PLC, 
East Lindsey District Council,http://statistics.data.gov.uk/id/local-authority/32UC,Leisure Operations,Electricity,27/06/13,IJ00023568,96.78,SOUTHERN ELECTRIC PLC, 
East Lindsey District Council,http://statistics.data.gov.uk/id/local-authority/32UC,TL Property,Electricity,27/06/13,IJ00023568,629.08,SOUTHERN ELECTRIC PLC, 
East Lindsey District Council,http://statistics.data.gov.uk/id/local-authority/32UC,Economic & Tourism,Electricity,27/06/13,IJ00023568,947.09,SOUTHERN ELECTRIC PLC, 
East Lindsey District Council,http://statistics.data.gov.uk/id/local-authority/32UC,Neighbourhood Services,Electricity,27/06/13,IJ00023568,152.30,SOUTHERN ELECTRIC PLC, 
East Lindsey District Council,http://statistics.data.gov.uk/id/local-authority/32UC,TL Property,Electricity,27/06/13,IJ00023568,2908.25,SOUTHERN ELECTRIC PLC, 
East Lindsey District Council,http://statistics.data.gov.uk/id/local-authority/32UC,Economic & Tourism,Electricity,27/06/13,IJ00023539,9598.32,SOUTHERN ELECTRIC PLC, 
East Lindsey District Council,http://statistics.data.gov.uk/id/local-authority/32UC,Neighbourhood Services,Electricity,27/06/13,IJ00023539,21.53,SOUTHERN ELECTRIC PLC, 
East Lindsey District Council,http://statistics.data.gov.uk/id/local-authority/32UC,TL Property,Electricity,27/06/13,IJ00023539,3639.56,SOUTHERN ELECTRIC PLC, 
East Lindsey District Council,http://statistics.data.gov.uk/id/local-authority/32UC,Waste Services Manager,Electricity,27/06/13,IJ00023539,51.13,SOUTHERN ELECTRIC PLC, 
East Lindsey District Council,http://statistics.data.gov.uk/id/local-authority/32UC,Neighbourhood Services,Electricity,27/06/13,IJ00023539,211.71,SOUTHERN ELECTRIC PLC, 
East Lindsey District Council,http://statistics.data.gov.uk/id/local-authority/32UC,TL Property,Electricity,27/06/13,IJ00023539,297.08,SOUTHERN ELECTRIC PLC, 
East Lindsey District Council,http://statistics.data.gov.uk/id/local-authority/32UC,TL Property,Electricity,27/06/13,IJ00023539,285.12,SOUTHERN ELECTRIC PLC, 
East Lindsey District Council,http://statistics.data.gov.uk/id/local-authority/32UC,TL Property,Electricity,27/06/13,IJ00023539,74.38,SOUTHERN ELECTRIC PLC, 
East Lindsey District Council,http://statistics.data.gov.uk/id/local-authority/32UC,Neighbourhood Services,Electricity,27/06/13,IJ00023539,357.23,SOUTHERN ELECTRIC PLC, 
East Lindsey District Council,http://statistics.data.gov.uk/id/local-authority/32UC,TL Property,Electricity,27/06/13,IJ00023539,57.30,SOUTHERN ELECTRIC PLC, 
East Lindsey District Council,http://statistics.data.gov.uk/id/local-authority/32UC,Leisure Operations,Electricity,27/06/13,IJ00023555,870.78,SOUTHERN ELECTRIC PLC, 
East Lindsey District Council,http://statistics.data.gov.uk/id/local-authority/32UC,Neighbourhood Services,Electricity,27/06/13,IJ00023555,178.75,SOUTHERN ELECTRIC PLC, 
East Lindsey District Council,http://statistics.data.gov.uk/id/local-authority/32UC,Enforcement Team Leader,Electricity,27/06/13,IJ00023555,76.61,SOUTHERN ELECTRIC PLC, 
East Lindsey District Council,http://statistics.data.gov.uk/id/local-authority/32UC,Waste Services Manager,Electricity,27/06/13,IJ00023555,27.57,SOUTHERN ELECTRIC PLC, 
East Lindsey District Council,http://statistics.data.gov.uk/id/local-authority/32UC,Neighbourhood Services,Electricity,27/06/13,IJ00023555,128.33,SOUTHERN ELECTRIC PLC, 
East Lindsey District Council,http://statistics.data.gov.uk/id/local-authority/32UC,TL Property,Electricity,27/06/13,IJ00023555,30.96,SOUTHERN ELECTRIC PLC, 
East Lindsey District Council,http://statistics.data.gov.uk/id/local-authority/32UC,TL Property,Electricity,27/06/13,IJ00023555,385.19,SOUTHERN ELECTRIC PLC, 
East Lindsey District Council,http://statistics.data.gov.uk/id/local-authority/32UC,Economic & Tourism,Electricity,27/06/13,IJ00023555,768.86,SOUTHERN ELECTRIC PLC, 
East Lindsey District Council,http://statistics.data.gov.uk/id/local-authority/32UC,Neighbourhood Services,Electricity,27/06/13,IJ00023555,107.23,SOUTHERN ELECTRIC PLC, 
East Lindsey District Council,http://statistics.data.gov.uk/id/local-authority/32UC,Leisure Operations,Electricity,27/06/13,IJ00023555,94.63,SOUTHERN ELECTRIC PLC, 
East Lindsey District Council,http://statistics.data.gov.uk/id/local-authority/32UC,Theatre Manager,Buildings Maintenance - Responsive,27/06/13,IJ00023520,695.00,DORMA UK LTD - SERVICE DIVISION, 
East Lindsey District Council,http://statistics.data.gov.uk/id/local-authority/32UC,Neighbourhood Services,Buildings Maintenance - Responsive,27/06/13,IJ00023517,969.78,DEVLIN DECORATORS LTD, 
East Lindsey District Council,http://statistics.data.gov.uk/id/local-authority/32UC,Information Technology,Computer Software Licence Costs,27/06/13,IJ00023465,1551.71,ORCHARD INFORMATION SYSTEMS LIMITED, 
East Lindsey District Council,http://statistics.data.gov.uk/id/local-authority/32UC,Environment Team Leader,Grants and Contributions to Outside Bodies- No Service Recei,27/06/13,IJ00023408,4326.00,FOXHALL CONSTRUCTION LTD, 
East Lindsey District Council,http://statistics.data.gov.uk/id/local-authority/32UC,Capital WIP,"Purchase of Plant, Machinery & Equipment",27/06/13,IJ00023635,42743.19,METRIC GROUP LTD, 
East Lindsey District Council,http://statistics.data.gov.uk/id/local-authority/32UC,Enforcement Team Leader,Stationery,27/06/13,IJ00023474,3.65,ESPO, 
East Lindsey District Council,http://statistics.data.gov.uk/id/local-authority/32UC,Leisure Operations,Cleaning Contract,27/06/13,IJ00023474,409.67,ESPO, 
East Lindsey District Council,http://statistics.data.gov.uk/id/local-authority/32UC,Leisure Operations,Stationery,27/06/13,IJ00023474,67.85,ESPO, 
East Lindsey District Council,http://statistics.data.gov.uk/id/local-authority/32UC,Economic & Tourism,Furniture and Equipment,27/06/13,IJ00023474,176.00,ESPO, 
East Lindsey District Council,http://statistics.data.gov.uk/id/local-authority/32UC,Development Control,Stationery,27/06/13,IJ00023476,9.05,ESPO, 
East Lindsey District Council,http://statistics.data.gov.uk/id/local-authority/32UC,Neighbourhood Services,Materials and Consumables,27/06/13,IJ00023476,98.64,ESPO, 
East Lindsey District Council,http://statistics.data.gov.uk/id/local-authority/32UC,Leisure Operations,Materials and Consumables,27/06/13,IJ00023476,3.40,ESPO, 
East Lindsey District Council,http://statistics.data.gov.uk/id/local-authority/32UC,Neighbourhood Services,Materials and Consumables,27/06/13,IJ00023476,616.32,ESPO, 
East Lindsey District Council,http://statistics.data.gov.uk/id/local-authority/32UC,Leisure Operations,Stationery,27/06/13,IJ00023476,36.75,ESPO, 
East Lindsey District Council,http://statistics.data.gov.uk/id/local-authority/32UC,Leisure Operations,Cleaning Contract,27/06/13,IJ00023476,115.55,ESPO, 
East Lindsey District Council,http://statistics.data.gov.uk/id/local-authority/32UC,Housing Support TL,Other Miscellaneous Expenses,27/06/13,IJ00023476,84.36,ESPO, 
East Lindsey District Council,http://statistics.data.gov.uk/id/local-authority/32UC,Waste Services Manager,Furniture and Equipment,27/06/13,IJ00023542,35.00,ESPO, 
East Lindsey District Council,http://statistics.data.gov.uk/id/local-authority/32UC,Neighbourhood Services,Materials and Consumables,27/06/13,IJ00023542,276.30,ESPO, 
East Lindsey District Council,http://statistics.data.gov.uk/id/local-authority/32UC,Neighbourhood Services,Materials and Consumables,27/06/13,IJ00023542,224.25,ESPO, 
East Lindsey District Council,http://statistics.data.gov.uk/id/local-authority/32UC,Neighbourhood Services,Materials and Consumables,27/06/13,IJ00023542,192.50,ESPO, 
East Lindsey District Council,http://statistics.data.gov.uk/id/local-authority/32UC,Neighbourhood Services,Materials and Consumables,27/06/13,IJ00023542,38.12,ESPO, 
East Lindsey District Council,http://statistics.data.gov.uk/id/local-authority/32UC,Theatre Manager,Gas,27/06/13,IJ00023587,1914.54,ESPO, 
East Lindsey District Council,http://statistics.data.gov.uk/id/local-authority/32UC,Leisure Operations,Gas,27/06/13,IJ00023587,1865.89,ESPO, 
East Lindsey District Council,http://statistics.data.gov.uk/id/local-authority/32UC,Leisure Operations,Gas,27/06/13,IJ00023587,189.64,ESPO, 
East Lindsey District Council,http://statistics.data.gov.uk/id/local-authority/32UC,Leisure Operations,Gas,27/06/13,IJ00023587,3386.86,ESPO, 
East Lindsey District Council,http://statistics.data.gov.uk/id/local-authority/32UC,Leisure Operations,Gas,27/06/13,IJ00023587,101.03,ESPO, 
East Lindsey District Council,http://statistics.data.gov.uk/id/local-authority/32UC,TL Property,Gas,27/06/13,IJ00023587,10.99,ESPO, 
East Lindsey District Council,http://statistics.data.gov.uk/id/local-authority/32UC,TL Property,Gas,27/06/13,IJ00023587,2743.12,ESPO, 
East Lindsey District Council,http://statistics.data.gov.uk/id/local-authority/32UC,TL Property,Gas,27/06/13,IJ00023587,177.78,ESPO, 
East Lindsey District Council,http://statistics.data.gov.uk/id/local-authority/32UC,TL Property,Gas,27/06/13,IJ00023587,1974.81,ESPO, 
East Lindsey District Council,http://statistics.data.gov.uk/id/local-authority/32UC,Economic & Tourism,Gas,27/06/13,IJ00023587,326.38,ESPO, 
East Lindsey District Council,http://statistics.data.gov.uk/id/local-authority/32UC,Leisure Operations,Gas,27/06/13,IJ00023587,316.52,ESPO, 
East Lindsey District Council,http://statistics.data.gov.uk/id/local-authority/32UC,Economic & Tourism,Gas,27/06/13,IJ00023587,350.29,ESPO, 
East Lindsey District Council,http://statistics.data.gov.uk/id/local-authority/32UC,TL Property,Gas,27/06/13,IJ00023587,334.54,ESPO, 
East Lindsey District Council,http://statistics.data.gov.uk/id/local-authority/32UC,TL Property,Gas,27/06/13,IJ00023587,123.25,ESPO, 
East Lindsey District Council,http://statistics.data.gov.uk/id/local-authority/32UC,TL Property,Gas,27/06/13,IJ00023587,28.00,ESPO, 
East Lindsey District Council,http://statistics.data.gov.uk/id/local-authority/32UC,TL Property,Gas,27/06/13,IJ00023587,31.00,ESPO, 
East Lindsey District Council,http://statistics.data.gov.uk/id/local-authority/32UC,TL Property,Gas,27/06/13,IJ00023587,221.22,ESPO, 
East Lindsey District Council,http://statistics.data.gov.uk/id/local-authority/32UC,TL Property,Gas,27/06/13,IJ00023587,-387.80,ESPO, 
East Lindsey District Council,http://statistics.data.gov.uk/id/local-authority/32UC,TL Property,Gas,27/06/13,IJ00023587,-308.36,ESPO, 
East Lindsey District Council,http://statistics.data.gov.uk/id/local-authority/32UC,TL Property,Gas,27/06/13,IJ00023587,421.71,ESPO, 
East Lindsey District Council,http://statistics.data.gov.uk/id/local-authority/32UC,Economic & Tourism,Gas,27/06/13,IJ00023587,40.15,ESPO, 
East Lindsey District Council,http://statistics.data.gov.uk/id/local-authority/32UC,Neighbourhood Services,Gas,27/06/13,IJ00023587,32.90,ESPO, 
East Lindsey District Council,http://statistics.data.gov.uk/id/local-authority/32UC,Economic & Tourism,Gas,27/06/13,IJ00023587,59.83,ESPO, 
East Lindsey District Council,http://statistics.data.gov.uk/id/local-authority/32UC,Leisure Operations,Gas,27/06/13,IJ00023587,25.20,ESPO, 
East Lindsey District Council,http://statistics.data.gov.uk/id/local-authority/32UC,Waste Services Manager,Agency Staff,27/06/13,IJ00023528,6561.07,CLOSE INVOICE FINANCE LTD, 
East Lindsey District Council,http://statistics.data.gov.uk/id/local-authority/32UC,"Performance, Governance & Commissioning",Grants and Contributions to Outside Bodies- No Service Recei,27/06/13,IJ00023579,1000.00,SKEGNESS & WINTHORPE PCC, 
East Lindsey District Council,http://statistics.data.gov.uk/id/local-authority/32UC,Waste Services Manager,Insurance,27/06/13,IJ00023490,6518.33,TRAVELERS INSURANCE COMPANY LIMITED, 
East Lindsey District Council,http://statistics.data.gov.uk/id/local-authority/32UC,Waste Services Manager,Insurance,27/06/13,IJ00023490,976.85,TRAVELERS INSURANCE COMPANY LIMITED, 
East Lindsey District Council,http://statistics.data.gov.uk/id/local-authority/32UC,Waste Services Manager,Insurance,27/06/13,IJ00023490,540.00,TRAVELERS INSURANCE COMPANY LIMITED, 
East Lindsey District Council,http://statistics.data.gov.uk/id/local-authority/32UC,Enforcement Team Leader,Insurance,27/06/13,IJ00023490,5854.09,TRAVELERS INSURANCE COMPANY LIMITED, 
East Lindsey District Council,http://statistics.data.gov.uk/id/local-authority/32UC,Enforcement Team Leader,Insurance,27/06/13,IJ00023490,4250.00,TRAVELERS INSURANCE COMPANY LIMITED, 
East Lindsey District Council,http://statistics.data.gov.uk/id/local-authority/32UC,Theatre Manager,Insurance,27/06/13,IJ00023490,2333.67,TRAVELERS INSURANCE COMPANY LIMITED, 
East Lindsey District Council,http://statistics.data.gov.uk/id/local-authority/32UC,BALANCE  SHEET,Payroll-Gmbatu,27/06/13,IJ00023545,682.32,GMB NATIONAL ADMINISTRATION UNIT, 
East Lindsey District Council,http://statistics.data.gov.uk/id/local-authority/32UC,Hsg Advice & Homelessness TL,Grants and Contributions to Outside Bodies- No Service Recei,27/06/13,IJ00023597,1665.40,WEST LINDSEY DISTRICT COUNCIL, 
East Lindsey District Council,http://statistics.data.gov.uk/id/local-authority/32UC,Enforcement Team Leader,Payments to Bodies in Respect of Income Collected,27/06/13,IJ00023503,2485.28,INNES ENGLAND COMMERCIAL PROPERTY, 
East Lindsey District Council,http://statistics.data.gov.uk/id/local-authority/32UC,Hsg Private Sector TL,Grants and Contributions to Outside Bodies- No Service Recei,27/06/13,IJ00023619,8298.05,DENNISS & MARWOOD, 
East Lindsey District Council,http://statistics.data.gov.uk/id/local-authority/32UC,Hsg Private Sector TL,Other Income,27/06/13,IJ00023619,-740.90,DENNISS & MARWOOD, 
East Lindsey District Council,http://statistics.data.gov.uk/id/local-authority/32UC,Neighbourhood Services,Agency Staff,27/06/13,IJ00023407,864.02,THE WORKSHOP (WISBECH) LIMITED, 
East Lindsey District Council,http://statistics.data.gov.uk/id/local-authority/32UC,Neighbourhood Services,Agency Staff,27/06/13,IJ00023407,864.01,THE WORKSHOP (WISBECH) LIMITED, 
East Lindsey District Council,http://statistics.data.gov.uk/id/local-authority/32UC,Neighbourhood Services,Agency Staff,27/06/13,IJ00023406,917.80,THE WORKSHOP (WISBECH) LIMITED, 
East Lindsey District Council,http://statistics.data.gov.uk/id/local-authority/32UC,Neighbourhood Services,Agency Staff,27/06/13,IJ00023406,917.79,THE WORKSHOP (WISBECH) LIMITED, 
East Lindsey District Council,http://statistics.data.gov.uk/id/local-authority/32UC,Neighbourhood Services,Buildings Maintenance - Responsive,27/06/13,IJ00023357,750.00,RUBAROC, 
East Lindsey District Council,http://statistics.data.gov.uk/id/local-authority/32UC,Hsg Private Sector TL,Other Income,27/06/13,IJ00023610,-390.47,HARRIS BUILDING SERVICES, 
East Lindsey District Council,http://statistics.data.gov.uk/id/local-authority/32UC,Hsg Private Sector TL,Grants and Contributions to Outside Bodies- No Service Recei,27/06/13,IJ00023610,4373.22,HARRIS BUILDING SERVICES, 
East Lindsey District Council,http://statistics.data.gov.uk/id/local-authority/32UC,Theatre Manager,Performers and Entertainers Fees,27/06/13,IJ00023499,4764.55,DEREK BLOCK CONCERT PROMOTIONS LTD, 
East Lindsey District Council,http://statistics.data.gov.uk/id/local-authority/32UC,Neighbourhood Services,Water and Sewerage Charges,27/06/13,IJ00023524,1487.77,ANGLIAN WATER, 
East Lindsey District Council,http://statistics.data.gov.uk/id/local-authority/32UC,Leisure Operations,Water and Sewerage Charges,27/06/13,IJ00023525,923.93,ANGLIAN WATER, 
East Lindsey District Council,http://statistics.data.gov.uk/id/local-authority/32UC,Revenues & Benefits,Housing Benefit Overpayments,27/06/13,IJ00023402,975.00,DONCASTER METROPOLITAN BOROUGH COUNCIL, 
East Lindsey District Council,http://statistics.data.gov.uk/id/local-authority/32UC,"Performance, Governance & Commissioning",Grants and Contributions to Outside Bodies- No Service Recei,27/06/13,IJ00023480,1600.00,FURNICHURCH, 
